Cogmind - Beta 17.1 @@@ ROGUE MODE // 2026.09.13 @ 21:26:44 Player: teag2 Result: Fortifying 0b10! Performance ------------- Evolutions (9) 4500 Regions Visited (30) 6000 Robots Destroyed (691) 3455 Value Destroyed (50138) 50138 Prototype IDs (194) 3880 Alien Tech Used (5) 1000 Bonus (40420) 40420 TOTAL SCORE: 109393 Bonus ------- Triggered High Security 500 High Alert Combat Kills 18532 Follower Combat Kills 2795 Hunted by Unchained 1000 Destroyed Unchained 1000 Spooked CY-PHR 2500 Network Hubs Disabled 800 Met Zhirov 300 Met Warlord at Base 500 MAIN.C Attacked Warlord 500 Warlord Defense Kills 1942 Built Enhanced Grunts 300 A7 Reached Mainframe 300 Met R17 at Cetus 500 Met Warlord at Research 2000 Invited to Help at Command 2000 Destroyed MAIN.C Guards 500 Met MAIN.C 5000 Destroyed MAIN.C Shell 5000 Win 3000 Friendly Fire -8549 Cogmind --------- Core Integrity 1387/1600 Matter 300/300 Energy 1519/1640 System Corruption 0% Temperature Cool (3) Movement Treading (29) Location By MAIN.C's Side Parts ------- > --- POWER (3) -------- Hybrid Graviton Reactor Concept Zero-point Core Concept Zero-point Core > --- PROPULSION (4) --- Treaded Heavy Exoskeleton > --- UTILITY (14) ----- Armored Scrap Engine Concept Antigrav Storage Unit Enhanced Optical Array Concept Core Analysis Suite Experimental Armor Integrity Analyzer Experimental Kinecellerator Centrium Medium Armor Plating Centrium Medium Armor Plating Medium Regenerative Plating Graphene Brace Advanced Focal Shield Concept Energy Mantle Experimental System Purifier > --- WEAPON (4) ------- Shotgun Thermic Driver Construct/C > --- INVENTORY (25) --- Vortex Chain Reactor Concept Phasing Heat Sink Experimental Cooling System Concept Thermoelectric Network Concept Thermoelectric Network Concept Chromion Battery (800) Concept NT7 Matterbank (750) Advanced Sensor Array Particle Accelerator Mini Quantum Capacitor Concept Cloak Mesh Thermal Barrier Experimental EM Shield System Mapper Deep Network Scanner Improved System Guard Improved System Restoration Module Concept Matter Streamer Crosscalibrator Transdimensional Reconstructor Transdimensional Reconstructor High-powered Transdimensional Reconstructor Vortex Shotgun (50) Gamma Refractor Peak State ------------ > --- POWER ------------ Hybrid Graviton Reactor Concept Zero-point Core Concept Zero-point Core > --- PROPULSION ------- Treaded Heavy Exoskeleton > --- UTILITY ---------- Armored Scrap Engine Concept Antigrav Storage Unit Enhanced Optical Array Concept Core Analysis Suite Experimental Kinecellerator Experimental Transmission Jammer Concept Cloak Mesh Concept Cloak Mesh Centrium Medium Armor Plating Medium Regenerative Plating Graphene Brace Concept Energy Mantle Experimental System Purifier > --- WEAPON ----------- Shotgun Thermic Driver Construct/C > --- INVENTORY -------- Vortex Chain Reactor Concept Phasing Heat Sink Experimental Cooling System Concept Thermoelectric Network Concept Thermoelectric Network Concept Chromion Battery Concept NT7 Matterbank Advanced Sensor Array Particle Accelerator Mini Quantum Capacitor Advanced Focal Shield Thermal Barrier Experimental EM Shield System Mapper Deep Network Scanner Improved System Guard Improved System Restoration Module Concept Matter Streamer Crosscalibrator Transdimensional Reconstructor Transdimensional Reconstructor High-powered Transdimensional Reconstructor Vortex Shotgun Gamma Refractor [Rating: 275] Favorites ----------- Power Vortex Chain Reactor Engine Heavy Ion Engine Power Core Concept Zero-point Core Reactor Vortex Chain Reactor Propulsion Constructs Treads Constructs Leg Aluminum Leg Flight Unit Makeshift Flight Unit Utility High-capacity Storage Unit Device Armored Scrap Engine Storage High-capacity Storage Unit Processor Experimental Core Analyzer Hackware Improved Hacking Suite Protection Medium Regenerative Plating Weapon Constructs Energy Gun Lightning Gun Energy Cannon Neutron Cannon Ballistic Gun Heavy Assault Rifle Ballistic Cannon Constructs Launcher Advanced EMP Blaster Special Weapon Plasma Cutter Special Melee Weapon Improved Datajack Build | -11 -10 -10 -8 -8 -8 -6 -6 -6 -6 -6 -6 -6 -5 -5 -5 -5 -5 -5 -4 -4 -4 -4 -4 -3 -3 -3 -3 -2 -1 -1 ------- Run | Yrd Mat Sub Mat Sto Rec Fac Was Fac Ext Cet Arc Hub Fac Was Fac Upp Upp War Pro Fac Upp Upp Zhi Pro Res Qua Frg Res Acc Com Slots Evolved 18 | . . . 4 . . 4 . . . . . . 2 . . . . . . 2 . . . . 2 . . 2 2 . Power 2 | . . . . . . . . . . . . . . . . . . . . 1 . . . . . . . . 1 . Propulsion 2 | . . . 2 . . . . . . . . . . . . . . . . . . . . . . . . . . . Utility 12 | . . . 1 . . 3 . . . . . . 2 . . . . . . 1 . . . . 2 . . 2 1 . Weapon 2 | . . . 1 . . 1 . . . . . . . . . . . . . . . . . . . . . . . . Parts Attached 202 | . 4 10 15 24 3 14 1 5 11 6 3 7 2 2 13 2 1 6 . 10 2 . 2 1 3 11 21 4 9 10 Power 23 | . 1 2 2 1 . 2 . 1 1 2 1 1 . . 1 . . . . 2 . . 1 . . 1 3 . 1 . Engine 10 | . 1 2 2 1 . 1 . 1 1 1 . . . . . . . . . . . . . . . . . . . . Core 3 | . . . . . . 1 . . . . . . . . . . . . . . . . . . . . 2 . . . Reactor 10 | . . . . . . . . . . 1 1 1 . . 1 . . . . 2 . . 1 . . 1 1 . 1 . Propulsion 19 | . . 2 6 10 . . . . . . . . . . . 1 . . . . . . . . . . . . . . Treads 18 | . . 2 6 10 . . . . . . . . . . . . . . . . . . . . . . . . . . Leg . | . . . . . . . . . . . . . . . . . . . . . . . . . . . . . . . Wheel . | . . . . . . . . . . . . . . . . . . . . . . . . . . . . . . . Hover . | . . . . . . . . . . . . . . . . . . . . . . . . . . . . . . . Flight 1 | . . . . . . . . . . . . . . . . 1 . . . . . . . . . . . . . . Utility 124 | . 3 1 3 6 2 6 . 4 7 1 2 4 1 1 10 1 1 6 . 8 2 . 1 1 3 10 18 4 8 10 Device 65 | . 2 . . 1 1 2 . 2 5 . 1 1 1 1 6 1 1 3 . 4 1 . . 1 1 9 11 4 1 5 Storage 6 | . 1 1 . 1 . . . . . . . . . . . . . 1 . 1 . . . . . . 1 . . . Processor 16 | . . . . . . 1 . . . . . . . . 2 . . 1 . . 1 . . . 1 1 5 . 1 3 Hackware 20 | . . . . 1 . 2 . 1 1 . . 3 . . 1 . . 1 . 3 . . . . 1 . . . 6 . Protection 17 | . . . 3 3 1 1 . 1 1 1 1 . . . 1 . . . . . . . 1 . . . 1 . . 2 Artifact . | . . . . . . . . . . . . . . . . . . . . . . . . . . . . . . . Weapon 36 | . . 5 4 7 1 6 1 . 3 3 . 2 1 1 2 . . . . . . . . . . . . . . . Energy Gun 6 | . . . . 1 . 2 . . . 2 . . . . 1 . . . . . . . . . . . . . . . Energy Cannon 4 | . . . . 1 . 1 . . . . . 2 . . . . . . . . . . . . . . . . . . Ballistic Gun 18 | . . 4 4 4 1 1 . . 2 1 . . . . 1 . . . . . . . . . . . . . . . Ballistic Cannon 3 | . . 1 . . . . 1 . . . . . . 1 . . . . . . . . . . . . . . . . Launcher 2 | . . . . 1 . 1 . . . . . . . . . . . . . . . . . . . . . . . . Special Weapon 1 | . . . . . . 1 . . . . . . . . . . . . . . . . . . . . . . . . Impact Weapon . | . . . . . . . . . . . . . . . . . . . . . . . . . . . . . . . Slashing Weapon . | . . . . . . . . . . . . . . . . . . . . . . . . . . . . . . . Piercing Weapon . | . . . . . . . . . . . . . . . . . . . . . . . . . . . . . . . Special Melee Weapon 2 | . . . . . . . . . 1 . . . 1 . . . . . . . . . . . . . . . . . Unidentified Prototypes 57 | . . . 2 2 1 3 1 . . 3 . 3 . . 6 . . 5 . 3 . . 3 . . 9 11 1 . 4 Parts Lost 35 | . 1 4 6 4 . 5 . 1 2 2 . . . . 6 . . . . 1 . . . . . . 1 . 1 1 Power 4 | . . 2 . . . . . . . 1 . . . . 1 . . . . . . . . . . . . . . . Propulsion 7 | . . . 3 1 . 1 . . . . . . . . 2 . . . . . . . . . . . . . . . Utility 17 | . 1 . 2 2 . 2 . 1 1 1 . . . . 3 . . . . 1 . . . . . . 1 . 1 1 Weapon 7 | . . 2 1 1 . 2 . . 1 . . . . . . . . . . . . . . . . . . . . . Highest Loss Streak 3 | . 1 1 2 2 . 2 . 1 1 1 . . . . 3 . . . . 1 . . . . . . 1 . 1 1 To Critical Strikes . | . . . . . . . . . . . . . . . . . . . . . . . . . . . . . . . Average Backups 17 | . 8 10 14 19 11 19 19 19 17 18 19 19 18 19 19 16 14 17 17 18 16 16 18 19 18 17 20 21 21 22 Power 1 | . 1 . 1 3 2 2 2 2 2 3 4 3 3 3 2 2 2 2 2 1 1 1 1 1 1 . 1 3 1 1 Propulsion 2 | . 5 6 7 10 5 3 4 4 1 1 . . . . . . . . . . . . . . . . . . . . Utility 9 | . . . 2 . 1 8 9 10 11 10 14 15 14 15 14 11 10 9 9 12 11 11 12 13 11 11 14 13 16 17 Weapon 2 | . 1 2 3 3 2 4 4 3 2 3 . . 1 1 1 1 1 4 5 4 4 4 4 4 4 3 1 1 1 1 Tool/Special . | . . . . . . . . . . . . . . . . . . . . . . . . . . . . . . . Unused Backups 108 | . 2 3 3 3 12 11 . 7 6 11 1 . . . 7 4 . 3 1 3 . . 1 . . 9 4 1 . 16 Power 7 | . 1 . 2 1 . . . . 1 1 . . . . 1 . . . . . . . . . . . . . . . Propulsion 35 | . . 1 . 1 11 5 . 2 4 4 1 . . . . 4 . . . . . . . . . 1 1 . . . Utility 33 | . 1 . . . . 3 . 3 . 2 . . . . 2 . . 2 . 2 . . . . . 2 3 1 . 12 Weapon 29 | . . 2 1 . 1 3 . 2 1 4 . . . . 4 . . 1 1 1 . . 1 . . 6 . . . 1 Tool/Special 4 | . . . . 1 . . . . . . . . . . . . . . . . . . . . . . . . . 3 Average Slot Usage (%) 67 | . 94 98 94 94 64 56 58 52 56 52 51 58 60 63 59 59 64 59 58 55 56 57 52 57 60 59 60 64 71 71 Engine 3 | . 14 12 8 8 9 5 . 2 6 4 . . . . . . . . . . . . . . . . . . . . Reactor 2 | . . . . . . . . . . 1 6 6 5 5 4 5 5 5 5 4 5 5 5 5 4 4 3 4 3 4 Treads 9 | . . 26 34 33 18 4 . . 3 6 6 6 2 . 2 1 . . 2 5 5 5 3 . . 1 4 4 4 4 Flight 1 | . . . . . . . . . . . . . . . . 5 11 4 . . . . 1 5 4 2 . . . . Device 18 | . 8 14 8 8 9 10 13 19 19 18 15 9 21 23 17 19 19 22 23 21 22 26 21 26 23 25 26 33 26 27 Storage 6 | . 14 14 8 8 9 6 6 6 6 6 6 6 5 5 5 5 5 5 5 5 5 5 5 5 4 4 4 4 4 4 Processor 4 | . . . . . . 5 6 . . . . . . . 5 11 11 11 11 8 9 10 10 10 9 9 10 8 8 10 Hackware 1 | . . . . . . 7 6 3 3 . . 10 5 5 3 . . . . 2 . . . . 3 . . . 11 . Protection 3 | . . . 7 7 3 . . 1 2 6 9 5 5 5 4 3 3 . . 2 3 . . . 3 4 3 4 . 9 Energy Cannon 1 | . . . . . 2 . . . . . . 5 3 5 4 2 5 5 5 4 . . . . . . . . . . Ballistic Gun 6 | . 28 26 23 25 10 . . . 2 . . . . . . . . . . . . . . . . . . . . . Ballistic Cannon 2 | . . 1 2 . 1 6 11 5 6 6 6 6 1 . . 2 . . . . 5 5 5 5 4 3 4 4 4 4 Peak Build Rating 275 | . 8 13 42 48 49 74 70 72 73 89 95 103 119 122 121 107 108 136 137 151 153 153 155 155 168 189 227 237 265 275 Average Rating 105 | . 6 10 22 32 35 66 69 70 70 77 91 98 111 120 110 100 106 121 132 146 151 153 149 155 167 169 201 235 252 265 On Entrance 108 | 6 6 8 13 42 34 49 66 70 71 72 84 95 103 119 121 98 107 106 133 128 147 153 153 155 155 168 189 213 236 262 Avg Prop Armor Cover (%) 1 | . . . . . . . . . . . . . . . . 1 1 1 . . . . . . . . . . . . Naked Turns . | . . . . . . . . . . . . . . . . . . . . . . . . . . . . . . . Heaviest Build 136 | 10 18 52 95 99 62 68 61 66 76 82 101 110 98 102 102 86 86 95 89 114 113 104 104 103 108 130 126 124 120 136 Greatest Support 292 | 20 20 40 80 86 86 69 67 67 86 86 147 138 138 138 173 89 89 96 133 176 176 176 195 292 195 215 215 215 215 215 Greatest Overweight (x) 9 | . . 1 1 1 9 1 . . 1 1 1 . . . . . . 1 . . . . . . . . . . . . Average Overweight (x) . | . . . . . . . . . . . . . . . . . . . . . . . . . . . . . . . Largest Inventory Capacity 25 | . 10 20 20 20 20 20 20 20 20 20 20 20 20 20 20 20 20 20 20 20 20 20 20 20 20 20 25 25 25 25 Average Capacity 20 | . 9 14 20 20 20 20 20 20 20 20 20 20 20 20 20 20 20 20 20 20 20 20 20 20 20 20 23 25 25 25 Most Carried 25 | . 10 14 20 20 20 20 20 20 20 20 20 20 20 20 20 20 16 20 20 20 18 17 20 20 20 20 25 24 25 25 Average Carried 17 | . 8 10 16 19 11 19 19 19 17 19 19 19 18 20 19 17 15 18 19 19 17 17 19 20 19 17 21 21 22 24 Final Capacity 25 | 8 10 20 20 20 20 20 20 20 20 20 20 20 20 20 20 20 20 20 20 20 20 20 20 20 20 20 25 25 25 25 Final Carried 25 | 6 10 13 18 20 20 20 19 20 19 20 20 20 20 20 20 16 15 20 20 18 17 17 20 20 20 20 24 21 24 25 Scrap Engine Consumption 218 | . . . . . 49 8 . 9 11 17 1 4 . 14 23 3 . 14 2 15 . 4 2 1 . 27 14 . . . Constructs Created 4 | . . . . . 3 . . . . . . . . . 1 . . . . . . . . . . . . . . . Constructs Modified 74 | . . . . . 13 3 . 2 6 4 3 . 2 . 11 7 . 2 2 4 . . 7 . . 6 2 . . . Class Distribution -------------------- 29% | Construct 15% | Commander-Construct 11% | Scavenger-Tank 10% | Scavenger-Construct 9% | Mutant 6% | Infiltrator-Construct Dominant Class ---------------- Mutant | -10/Materials Mutant | -10/Subcaves Scavenger-Tank | -8/Materials Scavenger-Tank | -8/Storage Commander-Construct | -8/Recycling Construct | -6/Factory Construct | -6/Waste Construct | -6/Factory Construct | -6/Extension Commander-Construct | -6/Cetus Commander-Construct | -6/Archives Commander-Construct | -6/Hub_04(d) Scavenger-Construct | -5/Factory Scavenger-Construct | -5/Waste Scavenger-Construct | -5/Factory Construct | -5/Upper Caves Construct | -5/Upper Caves Commander-Construct | -5/Warlord Construct | -4/Proximity Caves Construct | -4/Factory Construct | -4/Upper Caves Infiltrator-Construct | -4/Upper Caves Construct | -4/Zhirov Infiltrator-Construct | -3/Proximity Caves Infiltrator-Construct | -3/Research Construct | -3/Quarantine Scavenger-Construct | -3/Protoforge Infiltrator-Gunner | -2/Research Hacker-Gunner | -1/Access Scavenger-Tank | -1/Command Resources | -11 -10 -10 -8 -8 -8 -6 -6 -6 -6 -6 -6 -6 -5 -5 -5 -5 -5 -5 -4 -4 -4 -4 -4 -3 -3 -3 -3 -2 -1 -1 ----------- Run | Yrd Mat Sub Mat Sto Rec Fac Was Fac Ext Cet Arc Hub Fac Was Fac Upp Upp War Pro Fac Upp Upp Zhi Pro Res Qua Frg Res Acc Com Matter Collected 11966 | 200 66 357 998 1099 303 694 . 203 1340 577 80 450 . 506 857 77 77 646 26 522 169 114 155 95 82 382 1413 133 160 185 Remotely . | . . . . . . . . . . . . . . . . . . . . . . . . . . . . . . . Salvage Created 51055 | . 241 531 1632 1916 789 1617 . 358 1608 394 80 339 . 1829 2841 115 70 934 312 4315 75 149 355 600 872 2349 7026 11414 2273 6021 Parts 2265 | . 13 41 85 105 29 82 . 23 71 38 8 13 . 59 140 9 5 51 9 102 1 5 3 14 20 77 402 379 144 337 Haulers Intercepted 32 | . 2 . 4 5 . 2 . . 3 . . . . . 5 . . . . 5 . . . . 1 2 . 2 1 . Recyclers Shooed 8 | . . . 1 2 1 1 . 1 . . . . . . 1 . . . . 1 . . . . . . . . . . Parts Field Recycled . | . . . . . . . . . . . . . . . . . . . . . . . . . . . . . . . Retrieved Matter . | . . . . . . . . . . . . . . . . . . . . . . . . . . . . . . . Parts Self-Destructed 35 | . . 12 . . . . . . . . . . . . . 7 5 . 1 . 1 4 2 3 . . . . . . Prevented 18 | . . . . . . . . . . . . . . . . . . . 7 . . 5 . 6 . . . . . . Parts Restored 2 | . . . . . . . . . . . . . . . . . . . . . . . . . . . 2 . . . Faulty 2 | . . . . . . . . . . . . . . . . . . . . . . . . . . . 2 . . . Kills | -11 -10 -10 -8 -8 -8 -6 -6 -6 -6 -6 -6 -6 -5 -5 -5 -5 -5 -5 -4 -4 -4 -4 -4 -3 -3 -3 -3 -2 -1 -1 ------- Run | Yrd Mat Sub Mat Sto Rec Fac Was Fac Ext Cet Arc Hub Fac Was Fac Upp Upp War Pro Fac Upp Upp Zhi Pro Res Qua Frg Res Acc Com Combat Hostiles Destroyed 530 | . 6 16 26 31 5 23 . 5 13 4 . 5 . 6 33 4 1 14 7 41 . 2 . 6 9 20 79 105 20 49 Melee 3 | . . . . . . 2 . . . . . 1 . . . . . . . . . . . . . . . . . . Guns 81 | . 6 15 26 29 5 . . . . . . . . . . . . . . . . . . . . . . . . . Cannons 403 | . . 1 . 2 . 21 . 5 13 4 . 4 . 6 31 4 1 14 6 27 . 2 . 4 7 11 74 100 20 46 AOE 3 | . . . . . . . . . . . . . . . 1 . . . . 2 . . . . . . . . . . Classes Destroyed 35 | . 3 2 6 4 . 4 . . . . . . . 2 2 . . 1 . 1 . . . . . 1 6 2 . 1 Worker 22 | . . . 4 . . 1 . . . . . . . . . . . . . 11 . . . . . . . 2 3 1 Builder 11 | . . . . 1 . . . . 1 . . . . . 1 . . . . 2 . . . . . . 1 1 4 . Tunneler 5 | . . . . . . . . . . . . . . . 2 . . . . 3 . . . . . . . . . . Hauler 32 | . 2 . 4 5 . 2 . . 3 . . . . . 5 . . . . 5 . . . . 1 2 . 2 1 . Recycler 14 | . . . 1 1 . 2 . 1 2 . . . . . 2 . . . . 5 . . . . . . . . . . Carrier 13 | . . . . . . . . . . . . . . . . . . . . . . . . . . . 1 12 . . Mechanic 2 | . . . 1 . . . . . . . . . . . 1 . . . . . . . . . . . . . . . Operator 18 | . . . 1 . . 1 . . . . . 1 . . 1 . . . . 1 . . . . . 2 1 4 6 . Drone 2 | . . . . . . . . . . . . . . . . . . . . . . . . . . . 2 . . . Watcher 33 | . . . 1 1 . 1 . . 2 . . 1 . . 1 . . . . 5 . . . . . 2 2 6 8 3 Swarmer 56 | . 3 6 3 . . 7 . 3 . . . 1 . . 4 4 . . 5 9 . . . . . . . . 5 6 Cutter 2 | . . . . . . . . . . . . . . . . . . . . 2 . . . . . . . . . . Saboteur 5 | . . . . . . 1 . . . . . . . . . . . . . . . . . . . . 1 3 . . Grunt 153 | . 3 . 16 12 . 4 . 1 5 . . 2 . . 7 . . 3 1 18 . 2 . 3 6 5 13 47 1 4 Brawler 9 | . . . . 3 . . . . . . . . . . . . . . . . . . . . . . 3 3 . . Duelist 15 | . . . 1 2 . . . . 1 . . . . . . . . . . . . . . . 1 . 4 5 . 1 Protector 10 | . . . . 1 . . . . . . . . . . 1 . . 3 . . . . . . . . 3 2 . . Researcher 7 | . . . . . . . . . . . . . . . . . . . . . . . . . . . 7 . . . Sentry 72 | . . 1 6 12 2 3 . 1 4 . . 1 . . 4 . . . 1 6 . . . . 2 . 9 17 2 1 Demolisher 3 | . . . . . . . . . . . . . . . . . . 1 . . . . . . . . . 2 . . Specialist 1 | . . . . . . . . . . . . . . . 1 . . . . . . . . . . . . . . . Hunter 45 | . . . . 1 . 2 . . 1 . . 1 . . 7 . 1 2 . 2 . . . 2 . 2 4 12 6 2 Programmer 32 | . . . . . . 4 . . . . . . . . 9 . . 3 . 1 . . . . . . 5 6 3 1 Heavy 5 | . . . . . . 1 . . . . . . . . . . . . . 2 . . . . . . . . 2 . Behemoth 4 | . . . . . . 1 . . 1 . . . . . . . . . . 1 . . . 1 . . . . . . Compactor 6 | . . . . . . . . . . . . . . 6 . . . . . . . . . . . . . . . . Cetus Guard 4 | . . . . . . . . . . 4 . . . . . . . . . . . . . . . . . . . . Quarantine Guard 12 | . . . . . . . . . . . . . . . . . . . . . . . . . . 12 . . . . M Guard 2 | . . . . . . . . . . . . . . . . . . . . . . . . . . . . . . 2 Enhanced Q-Series 30 | . . . . . . . . . . . . . . . . . . . . . . . . . . . . . . 30 Hotshot 13 | . . . . . . . . . . . . . . . . . . . . . . . . . . . 13 . . . Decapitator 9 | . . . . . . . . . . . . . . . . . . . . . . . . . . . 9 . . . Immortal 1 | . . . . . . . . . . . . . . . . . . . . . . . . . . . 1 . . . Combat Programmer 2 | . . . . . . . . . . . . . . . . . . . . . . . . . . . . . . 2 Striker 8 | . . . . . . . . . . . . . . . . . . 2 . . . . . . . . . 6 . . Executioner 1 | . . . . . . . . . . . . . . . . . . . . . . . . . . . . 1 . . Alpha 7 2 | . . . . . . . . . . . . . . . . . . . . . . . . . . . 2 . . . Fortress 1 | . . . . . . . . . . . . . . . . . . . . . . . . . . 1 . . . . V-Series 10 | . . . . . . . . . . . . . . . . . . . . . . . . . . . 10 . . . Subdweller 12 | . . 9 . . 3 . . . . . . . . . . . . . . . . . . . . . . . . . Tinkerer 1 | . . . . . . . . . . . . . . . . . . . . . . . . . . . 1 . . . Thug 1 | . . . . . . . . . 1 . . . . . . . . . . . . . . . . . . . . . Martyr 1 | . . . . . . . . . . . . . . 1 . . . . . . . . . . . . . . . . Troll 1 | . . . . . . . . . . . . . . . . . . . . . . . . . . . . 1 . . Best Kill Streak 34 | . 5 3 5 9 2 5 . 3 4 3 . 1 . 3 8 4 1 11 7 16 . 2 . 5 5 6 9 34 7 11 Combat Bots Only 24 | . 5 3 4 9 2 5 . 3 2 3 . 1 . 3 6 4 1 11 7 9 . 2 . 5 5 6 9 24 5 10 Max Kills in Single Turn 4 | . 1 1 2 2 2 1 . 1 1 1 . 1 . 1 3 1 1 1 1 4 . 1 . 1 1 1 3 3 4 2 Gunslinging 1 | . . . . 1 1 . . . . . . . . . . . . . . . . . . . . . . . . . Exploded 1 | . . . . . . . . . . . . . . . 1 . . . . 1 . . . . . . . . . . Melee 1 | . . . . . . 1 . . . . . 1 . . . . . . . . . . . . . . . . . . Uniques/NPCs Destroyed 4 | . . . . . . . . . . 1 . . . . . . . . . . . . . . . . . 1 1 1 A7 (-6/Cetus) God Mode (-2/Research) CY-PHR (-1/Access) MAIN.C Shell (-1/Command) Combat | -11 -10 -10 -8 -8 -8 -6 -6 -6 -6 -6 -6 -6 -5 -5 -5 -5 -5 -5 -4 -4 -4 -4 -4 -3 -3 -3 -3 -2 -1 -1 -------- Run | Yrd Mat Sub Mat Sto Rec Fac Was Fac Ext Cet Arc Hub Fac Was Fac Upp Upp War Pro Fac Upp Upp Zhi Pro Res Qua Frg Res Acc Com Hostile Shots Fired 1774 | . 23 62 114 109 23 231 . 76 213 39 . 132 . . 211 16 19 10 28 113 . 2 . 24 2 39 136 56 11 85 Missed 628 | . 6 17 37 38 10 88 . 35 87 8 . 44 . . 63 5 7 3 7 41 . 1 . 13 1 17 58 21 4 17 Hits 1146 | . 17 45 77 71 13 143 . 41 126 31 . 88 . . 148 11 12 7 21 72 . 1 . 11 1 22 78 35 7 68 Melee 11 | . . . 1 3 . 1 . . . . . . . . . . . . . 3 . . . . . . 3 . . . Projectile 1135 | . 17 45 76 68 13 142 . 41 126 31 . 88 . . 148 11 12 7 21 69 . 1 . 11 1 22 75 35 7 68 AOE 27 | . . . . . . 3 . . . . . 1 . . . . . 7 . 1 . . . . . . 4 . 1 10 Critical Strikes 50 | . . 1 4 . 1 5 . 1 2 7 . 5 . . 1 . . . . 7 . . . 1 . 2 11 . 1 1 Actively Blocked 19 | . . . . . . . . . 2 6 . . . . 1 . . . . 1 . . . . . 1 7 . . 1 Part Disruptions 5 | . . . . . . . . . . . . . . . . . . . . . . . . . . . . . 5 . Damage Taken 20978 | . 158 755 1205 1170 307 2538 . 458 1385 702 . 1422 . . 2706 175 270 454 239 1831 . 23 . 251 18 595 1669 752 299 1596 Core 1847 | . 50 92 74 97 44 171 . 61 200 39 . 129 . . 111 . 12 95 22 109 . . . 63 . 23 187 55 100 113 Absorbed by Shields 2964 | . . . . . . . . . 352 137 . . . . . . . 37 . . . . . . . 97 986 21 . 1334 Ignored by Resistances 1924 | . . . . 38 4 . . . . . . 631 . . . . . 5 80 272 . . . . . 141 294 83 . 376 Regen/Repaired (Parts) 9250 | . . . . . 20 500 . 193 778 698 282 198 413 95 1382 163 276 178 428 1440 43 . 115 . 93 779 662 152 21 341 Core Remaining (%) 70 | 100 . 43 . . 60 . . . . . . 29 . . . . . . 76 . . . . 85 . . 63 96 . 86 Volleys Fired 1556 | . 19 82 86 81 31 91 . 29 99 54 7 50 . 55 114 10 6 38 13 118 1 5 5 25 14 56 190 141 54 82 Largest 4 | . 2 2 3 4 3 1 . 1 1 1 1 1 . 1 1 1 1 1 1 1 1 1 1 1 1 1 1 1 1 1 Hottest 372 | . 40 58 88 106 75 75 . 65 65 240 65 59 . 177 372 110 330 110 110 110 110 110 110 83 83 89 89 89 89 89 Shots Fired 1956 | . 38 120 255 236 57 90 . 28 98 53 7 49 . 55 114 10 6 38 13 117 1 5 5 25 14 56 189 141 54 82 Gun 666 | . 38 115 248 225 39 . . . . 1 . . . . . . . . . . . . . . . . . . . . Cannon 1290 | . . 5 7 11 18 90 . 28 98 52 7 49 . 55 114 10 6 38 13 117 1 5 5 25 14 56 189 141 54 82 Launcher . | . . . . . . . . . . . . . . . . . . . . . . . . . . . . . . . Special . | . . . . . . . . . . . . . . . . . . . . . . . . . . . . . . . Kinetic 1264 | . 38 120 255 235 56 90 . 28 98 52 7 49 . . 70 6 . . . 8 1 5 5 . . 18 123 . . . Thermal 493 | . . . . 1 1 . . . . 1 . . . 55 44 4 6 38 . . . . . . . . 66 141 54 82 Explosive . | . . . . . . . . . . . . . . . . . . . . . . . . . . . . . . . Electromagnetic 199 | . . . . . . . . . . . . . . . . . . . 13 109 . . . 25 14 38 . . . . Robot Hit Streak 48 | . 7 21 13 27 12 17 . 8 12 5 3 7 . 6 9 3 3 10 2 7 2 3 4 3 5 27 41 31 18 48 Robot Miss Streak 9 | . 3 3 5 3 3 2 . 2 5 3 1 3 . 3 3 1 1 3 5 5 . 2 1 4 2 1 9 2 3 1 Penetration Max 1 | . . . . . . 1 . 1 1 . 1 . . . . . . . . . . . . . . . 1 1 1 1 Secondary Targets 20 | . 1 3 8 7 1 . . . . . . . . . . . . . . . . . . . . . . . . . Max Gunslinging Chain 1 | . 1 1 1 1 1 . . . . . . . . . . . . . . . . . . . . . . . . . Shots Hit Robots 1326 | . 26 50 158 171 39 64 . 19 78 33 4 25 . 40 73 4 4 27 6 64 1 3 4 7 10 38 139 124 34 81 Core Hits 650 | . 13 23 67 66 17 27 . 8 23 11 1 7 . 7 34 2 1 15 5 47 1 1 3 5 6 17 77 92 23 51 Critical Kills 29 | . 1 2 . 2 . . . . . . . . . 1 2 . . . . . . . . . . . 11 7 . 3 Critical Parts Destroyed 14 | . . . 3 . . . . . . . . 3 . 2 1 . . . . . . . . . . 2 3 . . . Critical Strikes 52 | . 1 2 4 3 . . . . . . . 3 . 4 5 . . . . . . . . . . 3 17 7 . 3 Meltdown 17 | . . . . . . . . . . . . . . . 1 . . . . . . . . . . . 6 7 . 3 Destroy 31 | . 1 2 3 2 . . . . . . . 3 . 4 2 . . . . . . . . . . 3 11 . . . Blast 4 | . . . 1 1 . . . . . . . . . . 2 . . . . . . . . . . . . . . . Melee Attacks 6 | . . . . . . . . . 5 . . . . 1 . . . . . . . . . . . . . . . . Impact . | . . . . . . . . . . . . . . . . . . . . . . . . . . . . . . . Slashing . | . . . . . . . . . . . . . . . . . . . . . . . . . . . . . . . Piercing . | . . . . . . . . . . . . . . . . . . . . . . . . . . . . . . . Sneak Attacks 6 | . . . . . . . . . 5 . . . . 1 . . . . . . . . . . . . . . . . Combat Hostiles . | . . . . . . . . . . . . . . . . . . . . . . . . . . . . . . . Follow-up Attacks . | . . . . . . . . . . . . . . . . . . . . . . . . . . . . . . . Damage Inflicted 201343 | . 233 733 2711 2904 1267 3941 . 845 4857 3118 254 2500 . 5529 10029 546 862 3406 1012 12092 190 344 750 1446 1938 8154 34655 50465 13215 33347 Guns 6603 | . 220 695 2555 2721 412 . . . . . . . . . . . . . . . . . . . . . . . . . Cannons 191281 | . . 38 95 102 855 3696 . 845 4771 3118 254 2373 . 5529 9076 546 862 3406 1012 10455 190 344 750 1446 1938 8154 34655 50404 13025 33342 Explosions 2542 | . . . . . . 111 . . . . . 88 . . 854 . . . . 1446 . . . . . . . . 43 . Melee . | . . . . . . . . . . . . . . . . . . . . . . . . . . . . . . . Ramming 917 | . 13 . 61 81 . 134 . . 86 . . 39 . . 99 . . . . 191 . . . . . . . 61 147 5 Kinetic 50152 | . 220 733 2650 2823 1267 3696 . 845 4771 3118 254 2373 . . 4775 546 . . . 353 190 344 750 . . 3737 16707 . . . Thermal 130286 | . . . . . . 111 . . . . . . . 5529 5127 . 862 3406 . 532 . . . . . . 17948 50404 13025 33342 Explosive 904 | . . . . . . . . . . . . . . . . . . . . 861 . . . . . . . . 43 . Electromagnetic 19084 | . . . . . . . . . . . . 88 . . 28 . . . 1012 10155 . . . 1446 1938 4417 . . . . Impact . | . . . . . . . . . . . . . . . . . . . . . . . . . . . . . . . Slashing . | . . . . . . . . . . . . . . . . . . . . . . . . . . . . . . . Piercing . | . . . . . . . . . . . . . . . . . . . . . . . . . . . . . . . Highest Corruption 14 | . . . . . . 7 13 13 14 14 14 13 . . 6 6 6 . . 1 1 1 1 1 . . 8 2 . 1 Average Corruption 7 | . . . . . . 5 12 13 13 14 8 8 . . 3 6 5 . . 1 1 1 1 1 . . 3 1 . 1 Corruption Purged 14 | . . . . . . . . . . . 7 . . . . . 6 . . . . . . . . . . . . 1 Corruption Blocked . | . . . . . . . . . . . . . . . . . . . . . . . . . . . . . . . Effects 234 | . . . . . . 28 5 14 69 30 3 17 . . 10 11 13 . . 5 . 2 1 2 . . 17 7 . . Message Errors 52 | . . . . . . 4 1 4 14 6 2 6 . . 2 4 1 . . 1 . . 1 . . . 6 . . . Matter Fused 59 | . . . . . . 12 1 . 15 11 . 6 . . 3 3 3 . . 1 . 1 . . . . 1 2 . . Heat Flow Errors 28 | . . . . . . 3 1 2 7 3 . . . . 1 2 3 . . 2 . . . 1 . . 1 2 . . Energy Discharges 33 | . . . . . . 3 . 3 11 3 . 1 . . 2 . 4 . . . . 1 . . . . 2 3 . . Parts Rejected 4 | . . . . . . . . . 1 2 . . . . 1 . . . . . . . . . . . . . . . Parts Fused 4 | . . . . . . . . . . . . 1 . . . . 1 . . . . . . . . . 2 . . . Data Loss (minor) 24 | . . . . . . 2 . 2 8 1 1 2 . . 1 2 1 . . . . . . 1 . . 3 . . . Data Loss (major) 18 | . . . . . . 3 1 1 9 3 . . . . . . . . . . . . . . . . 1 . . . Alerts 3 | . . . . . . . . 1 2 . . . . . . . . . . . . . . . . . . . . . Misdirections 2 | . . . . . . . 1 . 1 . . . . . . . . . . . . . . . . . . . . . Weapon Failures 7 | . . . . . . 1 . 1 1 1 . 1 . . . . . . . 1 . . . . . . 1 . . . Overload Shots 10 | . . . . . . . . . . 1 . . . 1 6 . 2 . . . . . . . . . . . . . Overflow Damage 36153 | . . . 2 . 144 224 . 32 244 45 53 272 . 28 2129 170 259 291 63 3293 . 71 146 78 260 709 5546 10505 4649 6940 Projectiles 35610 | . . . . . 144 153 . 32 198 45 53 272 . 28 2005 170 259 291 63 3059 . 71 146 78 260 709 5546 10505 4583 6940 Explosions 378 | . . . . . . 61 . . . . . . . . 114 . . . . 203 . . . . . . . . . . Melee 165 | . . . 2 . . 10 . . 46 . . . . . 10 . . . . 31 . . . . . . . . 66 . Knockbacks 137 | . . . . 1 6 8 . 3 13 7 1 17 . . 17 . . . . 1 . . . . . . 61 1 1 . Impact 6 | . . . . 1 . . . . 1 . . . . . 1 . . . . 1 . . . . . . . 1 1 . Kinetic 114 | . . . . . 4 8 . 3 11 7 1 12 . . 13 . . . . . . . . . . . 55 . . . Secondary 17 | . . . . . 2 . . . 1 . . 5 . . 3 . . . . . . . . . . . 6 . . . Self-Inflicted Damage 548 | . . . . . . 98 . . . . . 23 . . 21 . . . . 286 . . . . . . . . 120 . Shots 9 | . . . . . . 2 . . . . . 1 . . 1 . . . . 4 . . . . . . . . 1 . Rammed 41 | . . . 6 9 . 8 . . . . . 1 . . 4 . . . . 4 . . . . . . . 3 5 1 Targets Rammed 54 | . 7 . 8 11 . 8 . . 1 . . 2 . . 4 . . . . 4 . . . . . . . 3 5 1 Kicked 7 | . 7 . . . . . . . . . . . . . . . . . . . . . . . . . . . . . Crushed 6 | . . . 2 2 . . . . 1 . . 1 . . . . . . . . . . . . . . . . . . Highest Temperature 475 | . 12 . 204 449 214 386 221 160 260 304 134 260 . 121 475 125 318 122 112 324 62 63 62 91 12 68 48 333 80 88 Average Temperature 73 | . 6 . 65 157 117 113 121 60 81 61 64 100 . 8 97 47 118 38 54 61 35 46 38 9 8 32 5 60 38 36 Received Heat Transfer 3453 | . 48 102 612 378 78 615 . 99 314 18 . 204 . . 171 9 27 59 9 289 . 12 . 45 . 36 190 54 9 75 Effects 8 | . . . . 2 . . . . . . . . . . 5 . . . . 1 . . . . . . . . . . Shutdowns 2 | . . . . 1 . . . . . . . . . . 1 . . . . . . . . . . . . . . . Interference 5 | . . . . . . . . . . . . . . . 4 . . . . 1 . . . . . . . . . . Damage (minor) 1 | . . . . 1 . . . . . . . . . . . . . . . . . . . . . . . . . . Siege Activations 1 | . . . . . . . . . . . . 1 . . . . . . . . . . . . . . . . . . Total Turns 9 | . . . . . . . . . . . . 9 . . . . . . . . . . . . . . . . . . Longest Duration 9 | . . . . . . . . . . . . 9 . . . . . . . . . . . . . . . . . . Martial Activations . | . . . . . . . . . . . . . . . . . . . . . . . . . . . . . . . Shielding Activations . | . . . . . . . . . . . . . . . . . . . . . . . . . . . . . . . Robots Disrupted . | . . . . . . . . . . . . . . . . . . . . . . . . . . . . . . . Combat Hostiles . | . . . . . . . . . . . . . . . . . . . . . . . . . . . . . . . Robots Corrupted 37 | . . . . . 1 1 . . . . . . . . 2 . . . 1 16 . . . 2 2 10 . . 2 . Combat Hostiles 26 | . . . . . . . . . . . . . . . . . . . 1 12 . . . 2 2 9 . . . . Parts Fried 254 | . . . 1 . 2 1 . . 1 . . . . . 5 . . . 5 110 . 1 . 20 20 75 . 3 7 3 Impact Corruptions 16 | . . . 1 . 1 2 . . 2 . . 2 . . 3 . . . . 1 . . . . . . 1 . 3 . Robots Melted 17 | . . . . . . . . . . . . . . . 1 . . . . . . . . . . . 6 7 . 3 Combat Hostiles 13 | . . . . . . . . . . . . . . . 1 . . . . . . . . . . . 4 5 . 3 Parts Melted 87 | . . . . . . . . . . . . . . . 8 . 1 1 . . . . . . . . 14 26 9 28 Heat Transferred 27965 | . . . . . . 50 . . . . . . . 2380 2245 . 260 1150 . 350 . . . . . . 3820 9124 2350 6236 Parts Sabotaged 3 | . . . . . . 3 . . . . . . . . . . . . . . . . . . . . . . . . Parts Stolen . | . . . . . . . . . . . . . . . . . . . . . . . . . . . . . . . Parts Stripped . | . . . . . . . . . . . . . . . . . . . . . . . . . . . . . . . Power Chain Reactions . | . . . . . . . . . . . . . . . . . . . . . . . . . . . . . . . Alert | -11 -10 -10 -8 -8 -8 -6 -6 -6 -6 -6 -6 -6 -5 -5 -5 -5 -5 -5 -4 -4 -4 -4 -4 -3 -3 -3 -3 -2 -1 -1 ------- Run | Yrd Mat Sub Mat Sto Rec Fac Was Fac Ext Cet Arc Hub Fac Was Fac Upp Upp War Pro Fac Upp Upp Zhi Pro Res Qua Frg Res Acc Com Maximum Alert Level 5 | . . . 1 2 1 2 . 1 3 2 . 2 1 . 4 . . . . 4 . . . . 1 1 5 5 5 5 Low Security (%) 52 | . 100 . 90 5 90 73 100 80 68 . 100 55 . 100 20 . . . . 30 . . . . 62 50 13 . . 77 Level 1 14 | . . . 9 10 9 24 . 19 11 10 . 19 100 . 29 . . . . 12 . . . . 37 49 7 . . . Level 2 10 | . . . . 84 . 2 . . 3 89 . 24 . . 4 . . . . 17 . . . . . . 2 . . . Level 3 3 | . . . . . . . . . 16 . . . . . 7 . . . . 11 . . . . . . 12 . . . Level 4 6 | . . . . . . . . . . . . . . . 38 . . . . 28 . . . . . . 30 . . . Level 5 8 | . . . . . . . . . . . . . . . . . . . . . . . . . . . 32 3 100 22 High Security 4 | . . . . . . . . . . . . . . . . . . . . . . . . . . . . 96 . . Max Security . | . . . . . . . . . . . . . . . . . . . . . . . . . . . . . . . Peak Influence 5758 | . 105 . 352 666 275 482 168 229 893 578 172 610 288 86 1526 . . . . 1348 . . . . 235 368 2974 5758 4544 3492 Initial 3454 | . . . . 146 255 173 168 82 30 483 147 38 288 86 . . . . . 59 . . . . 57 123 93 1670 3454 2908 Average 738 | . 27 . 85 500 72 171 145 105 230 484 140 251 268 14 718 . . . . 606 . . . . 145 214 1384 3857 4056 2420 Influence Increases 23306 | . 169 160 756 1024 413 1172 . 312 1378 372 53 1239 . 14 2466 210 120 359 165 1702 5 40 15 155 253 753 3421 4108 1798 674 Destroy 0b10 Robot/C 10940 | . 120 140 520 600 180 460 . 100 660 160 . 400 . . 1000 80 20 280 140 640 . 40 . 120 180 400 1640 2300 380 380 Destroy 0b10 Robot/NC 865 | . 10 . 60 45 85 35 . 5 40 10 10 20 . . 95 . . 15 . 115 5 . 15 5 5 30 55 85 105 15 Destroy Leader 2110 | . 24 20 140 202 . 116 . 20 64 . . 124 . . 248 10 10 . 10 158 . . . 30 42 148 144 436 118 46 Allied During Kill 1729 | . . . . . 47 11 . . 459 170 10 297 . . 671 . . 64 . . . . . . . . . . . . Trap Triggered on 0b10 20 | . . . . . . . . . . . . . . . . . . . . 20 . . . . . . . . . . Successful Hack 502 | . . . 12 10 18 55 . 8 79 . . 15 . . 75 . . . . 43 . . . . 3 12 4 . 154 14 Select Force Hacks 160 | . . . . . 60 . . . . . . 100 . . . . . . . . . . . . . . . . . . Disable Machine 1635 | . . . . 15 . 60 . . 15 15 30 135 . . 150 . . . . 465 . . . . . 90 315 120 150 75 Anti-Garrison Action 1200 | . . . . 150 . . . 150 . . . . . . . . . . . . . . . . . . 150 450 300 . Destroy Structure 2955 | . . . 9 2 23 45 . 14 31 17 3 118 . 14 182 . . . . 186 . . . . 8 28 1098 687 346 144 Advance Influence 150 | . . . . . . 150 . . . . . . . . . . . . . . . . . . . . . . . . Partial Spotted 90 | . . . . . . . . . . . . 15 . . . . . . . 30 . . . . 15 15 15 . . . Lose Combat Pursuer 750 | . 15 . 15 . . 240 . 15 30 . . 15 . . 45 120 90 . 15 45 . . . . . 30 . 30 45 . Miscellaneous 200 | . . . . . . . . . . . . . . . . . . . . . . . . . . . . . 200 . Influence Decreases 19814 | . 121 208 408 716 1013 746 364 366 579 866 312 760 341 262 952 839 573 564 297 525 541 221 570 70 118 806 618 1320 3012 1726 Entered New Map 10212 | . . 24 . 202 401 33 314 36 34 380 222 72 301 162 . 561 169 432 227 36 471 141 555 . 28 97 74 1300 2304 1636 Time Decay 7327 | . 111 184 358 474 592 439 50 170 465 326 90 270 40 100 452 278 404 72 70 439 70 80 15 70 90 586 534 20 398 80 Lost Part 300 | . 10 . 50 40 . 50 . 10 20 20 . . . . 60 . . . . 10 . . . . . . 10 . 10 10 Lost Ally 1010 | . . . . . 20 120 . . 60 140 . 280 . . 290 . . 60 . 40 . . . . . . . . . . Purge Threat 965 | . . . . . . 104 . 150 . . . 138 . . 150 . . . . . . . . . . 123 . . 300 . Squads Dispatched 93 | . 1 . 3 7 . 8 . 5 3 . . 9 . . 12 . . . . 6 . . . . 1 2 10 1 25 . Investigation 28 | . . . 1 3 . 2 . 1 3 . . 5 . . 1 . . . . . . . . . 1 1 . . 10 . Extermination 18 | . . . . . . 3 . 1 . . . 2 . . 3 . . . . 3 . . . . . . 2 . 4 . Reinforcement 19 | . 1 . 2 1 . 3 . 1 . . . 2 . . 6 . . . . 1 . . . . . 1 . 1 . . Assault 25 | . . . . 3 . . . 2 . . . . . . 2 . . . . 2 . . . . . . 8 . 8 . Garrison 3 | . . . . . . . . . . . . . . . . . . . . . . . . . . . . . 3 . Intercept . | . . . . . . . . . . . . . . . . . . . . . . . . . . . . . . . Searches Triggered . | . . . . . . . . . . . . . . . . . . . . . . . . . . . . . . . Unchained Authorized 1 | . . . . . . . . . . . . . . . . . . . . 1 . . . . . . . . . . Construction Impeded . | . . . . . . . . . . . . . . . . . . . . . . . . . . . . . . . Haulers Reinforced 6 | . . . . . . 1 . 1 . . . . . . 3 . . . . . . . . . . 1 . . . . Active Scanning Responses . | . . . . . . . . . . . . . . . . . . . . . . . . . . . . . . . Cargo Convoy Interrupts 2 | . . . . . . 1 . . . . . . . . 1 . . . . . . . . . . . . . . . Stealth | -11 -10 -10 -8 -8 -8 -6 -6 -6 -6 -6 -6 -6 -5 -5 -5 -5 -5 -5 -4 -4 -4 -4 -4 -3 -3 -3 -3 -2 -1 -1 --------- Run | Yrd Mat Sub Mat Sto Rec Fac Was Fac Ext Cet Arc Hub Fac Was Fac Upp Upp War Pro Fac Upp Upp Zhi Pro Res Qua Frg Res Acc Com Distress Signals 39 | . 1 . 2 1 2 6 . . 1 3 2 4 . . 2 . . . . 1 . . . . . . . 6 . 8 Communications Jammed 31 | . . . . . . . . 1 . . . . . . . . . . . 5 . . . . . 17 7 . 1 . Distress Signals 25 | . . . . . . . . 1 . . . . . . . . . . . . . . . . . 17 6 . 1 . Times Spotted 645 | . 14 16 42 39 13 48 6 9 31 9 . 33 . 6 58 11 8 42 7 56 . 1 . 9 3 22 75 30 16 41 Peak Tracking Total 13 | . 3 3 4 8 6 9 6 4 6 5 . 13 . 3 13 9 8 8 4 6 . 1 . 4 1 4 6 4 4 8 Tactical Retreats 31 | . 1 . 1 . . 6 . 1 2 . . 1 . . 3 1 2 . 1 6 . . . . . 1 . 2 3 . ID Masks Used 1 | . . . . . . . . . . . . . . . . . . . . . . . . . . . . . 1 . Traps | -11 -10 -10 -8 -8 -8 -6 -6 -6 -6 -6 -6 -6 -5 -5 -5 -5 -5 -5 -4 -4 -4 -4 -4 -3 -3 -3 -3 -2 -1 -1 ------- Run | Yrd Mat Sub Mat Sto Rec Fac Was Fac Ext Cet Arc Hub Fac Was Fac Upp Upp War Pro Fac Upp Upp Zhi Pro Res Qua Frg Res Acc Com Traps Triggered 30 | . . . 1 2 . 5 . 1 1 . . . 1 . 2 . . . . 2 . . . . 1 . 7 . 4 3 Indirectly . | . . . . . . . . . . . . . . . . . . . . . . . . . . . . . . . Trap Hack Attempts . | . . . . . . . . . . . . . . . . . . . . . . . . . . . . . . . Triggered . | . . . . . . . . . . . . . . . . . . . . . . . . . . . . . . . Disarmed . | . . . . . . . . . . . . . . . . . . . . . . . . . . . . . . . Reprogrammed 6 | . . . . . . . . . . . . . . . . . . . . 6 . . . . . . . . . . Reused 5 | . . . . . . . . . . . . . . . . . . . . 5 . . . . . . . . . . Traps Extracted . | . . . . . . . . . . . . . . . . . . . . . . . . . . . . . . . Installed 1 | . . . 1 . . . . . . . . . . . . . . . . . . . . . . . . . . . Triggered 2 | . . . . . . . . . . . . . . . . . . . . 2 . . . . . . . . . . Most Traps Carried 1 | . . 1 1 . . . . . . . . . . . . . . . . . . . . . . . . . . . Machines | -11 -10 -10 -8 -8 -8 -6 -6 -6 -6 -6 -6 -6 -5 -5 -5 -5 -5 -5 -4 -4 -4 -4 -4 -3 -3 -3 -3 -2 -1 -1 ---------- Run | Yrd Mat Sub Mat Sto Rec Fac Was Fac Ext Cet Arc Hub Fac Was Fac Upp Upp War Pro Fac Upp Upp Zhi Pro Res Qua Frg Res Acc Com Machines Disabled 133 | . . 1 . 2 . 4 . 1 1 1 2 9 . . 10 . . 2 . 31 . . 1 . . 6 31 11 12 8 Max in Single Turn 6 | . . 1 . 1 . 2 . 1 1 1 1 4 . . 2 . . 1 . 6 . . 1 . . 1 2 1 1 1 Garrison Access 17 | . . . . 1 . 1 . 1 . . . . . . 1 . . . . 2 . . . . 1 1 1 4 4 . Network Hub 4 | . . . . . . . . . . . . 4 . . . . . . . . . . . . . . . . . . Machines Repaired . | . . . . . . . . . . . . . . . . . . . . . . . . . . . . . . . Machines Dismantled . | . . . . . . . . . . . . . . . . . . . . . . . . . . . . . . . Machines Sabotaged 2 | . . . . . . . . . . . . 2 . . . . . . . . . . . . . . . . . . Overloaded Fab Kills . | . . . . . . . . . . . . . . . . . . . . . . . . . . . . . . . Hacking | -11 -10 -10 -8 -8 -8 -6 -6 -6 -6 -6 -6 -6 -5 -5 -5 -5 -5 -5 -4 -4 -4 -4 -4 -3 -3 -3 -3 -2 -1 -1 --------- Run | Yrd Mat Sub Mat Sto Rec Fac Was Fac Ext Cet Arc Hub Fac Was Fac Upp Upp War Pro Fac Upp Upp Zhi Pro Res Qua Frg Res Acc Com Machines Accessed 137 | . . 1 4 8 9 10 . 4 20 1 . 6 . . 12 . . 3 1 14 . 3 4 . 5 7 4 . 19 2 Terminals 87 | . . . 3 4 5 8 . 2 19 1 . 6 . . 7 . . . 1 7 . . . . 3 4 3 . 12 2 Fabricators 4 | . . . . . . . . . . . . . . . 1 . . . . 1 . . . . 1 . . . 1 . Repair Stations 7 | . . . . 2 . . . . . . . . . . 1 . . . . 2 . . . . . 1 . . 1 . Recycling Units 8 | . . . . 1 3 . . 1 1 . . . . . 1 . . . . 1 . . . . . . . . . . Scanalyzers 7 | . . . 1 . . 1 . . . . . . . . 1 . . . . 1 . . . . . 1 . . 2 . Garrison Access 12 | . . . . 1 . 1 . 1 . . . . . . 1 . . . . 2 . . . . 1 1 1 . 3 . Total Hacks 450 | . . 1 7 16 33 21 . 11 48 2 . 21 . . 48 . . 13 1 58 . 8 17 . 11 20 13 . 94 7 Successful 228 | . . 1 5 5 16 10 . 3 25 . . 14 . . 29 . . 13 1 28 . 8 17 . 5 5 3 . 38 2 Failed 221 | . . . 2 11 17 10 . 8 23 2 . 7 . . 19 . . . . 30 . . . . 6 15 10 . 56 5 Catastrophic 50 | . . . . 3 2 2 . 1 6 1 . 1 . . 5 . . . . 6 . . . . 2 3 3 . 14 1 Database Lockouts 1 | . . . . . . 1 . . . . . . . . . . . . . . . . . . . . . . . . Manual 165 | . . . 4 3 20 5 . 3 25 1 . 15 . . 20 . . . . 22 . . . . 7 8 . . 32 . Terminals 282 | . . . 5 9 21 18 . 6 44 2 . 21 . . 29 . . . 1 32 . . . . 8 10 7 . 62 7 Fabricators 16 | . . . . . . . . . . . . . . . 5 . . . . 4 . . . . 2 . . . 5 . Repair Stations 24 | . . . . 3 . . . . . . . . . . 4 . . . . 9 . . . . . 4 . . 4 . Recycling Units 19 | . . . . 2 9 . . 2 4 . . . . . 1 . . . . 1 . . . . . . . . . . Scanalyzers 34 | . . . 2 . . 2 . . . . . . . . 6 . . . . 6 . . . . . 5 . . 13 . Garrison Access 33 | . . . . 2 . 1 . 3 . . . . . . 3 . . . . 6 . . . . 1 1 6 . 10 . Terminal Hacks 127 | . . 1 2 3 6 6 . 2 15 . . 8 . . 8 . . 13 1 6 . 8 17 . 1 2 3 . 23 2 Record 21 | . . . . . 1 . . . . . . . . . . . . . 1 . . 6 5 . . 1 1 . 6 . Part Schematic 4 | . . . . . . . . . . . . . . . . . . . . . . . 4 . . . . . . . Robot Schematic 1 | . . . . . 1 . . . . . . . . . . . . . . . . . . . . . . . . . Robot Analysis 5 | . . . . . 1 . . . . . . . . . . . . . . . . . 4 . . . . . . . Prototype ID Bank 23 | . . . . 1 1 . . . 2 . . 1 . . . . . 12 . . . . 4 . . . . . 2 . Open Door 14 | . . . . . . . . . 9 . . . . . . . . 1 . . . 2 . . . . . . 1 1 Level Access Points 1 | . . . . . . . . . . . . 1 . . . . . . . . . . . . . . . . . . Branch Access Points 7 | . . . 1 . . 1 . 1 . . . . . . 1 . . . . 1 . . . . 1 . . . 1 . Machine Index 3 | . . . . . . . . . . . . . . . 1 . . . . 1 . . . . . . . . 1 . Terminal Index 5 | . . . . . . . . . . . . 1 . . 1 . . . . 1 . . . . . . . . 1 1 Alert Level 4 | . . . . . . . . . . . . . . . 1 . . . . . . . . . . . . . 3 . Unreport Threat 11 | . . . . . . 2 . 1 . . . 2 . . 1 . . . . . . . . . . 1 . . 4 . Locate Traps 8 | . . . 1 1 . 2 . . 2 . . . . . . . . . . . . . . . . . 1 . 1 . Reprogram Traps 1 | . . . . . . . . . . . . . . . . . . . . 1 . . . . . . . . . . Recall Investigation 2 | . . . . . . . . . 1 . . . . . . . . . . . . . . . . . . . 1 . Recall Extermination 2 | . . . . . . . . . . . . 1 . . 1 . . . . . . . . . . . . . . . Hauler Manifests 4 | . . . . 1 . . . . 1 . . . . . 1 . . . . 1 . . . . . . . . . . Registered Components 4 | . . . . . . . . . . . . 1 . . 1 . . . . 1 . . . . . . . . 1 . Registered Prototypes 3 | . . . . . . 1 . . . . . 1 . . . . . . . . . . . . . . . . 1 . Proto ID Catalog 2 | . . 1 . . . . . . . . . . . . . . . . . . . . . . . . 1 . . . Release Object 2 | . . . . . 2 . . . . . . . . . . . . . . . . . . . . . . . . . Fabricator Hacks 8 | . . . . . . . . . . . . . . . 2 . . . . 4 . . . . . . . . 2 . Network Status 1 | . . . . . . . . . . . . . . . . . . . . . . . . . . . . . 1 . Load Schematic 3 | . . . . . . . . . . . . . . . 1 . . . . 2 . . . . . . . . . . Build 4 | . . . . . . . . . . . . . . . 1 . . . . 2 . . . . . . . . 1 . Repair Station Hacks 11 | . . . . 1 . . . . . . . . . . 4 . . . . 4 . . . . . . . . 2 . Scan Component 7 | . . . . 1 . . . . . . . . . . 2 . . . . 3 . . . . . . . . 1 . Repair 4 | . . . . . . . . . . . . . . . 2 . . . . 1 . . . . . . . . 1 . Recycling Unit Hacks 7 | . . . . 1 2 . . 1 1 . . . . . 1 . . . . 1 . . . . . . . . . . Retrieve Components 7 | . . . . 1 2 . . 1 1 . . . . . 1 . . . . 1 . . . . . . . . . . Scanalyzer 16 | . . . 2 . . 1 . . . . . . . . 4 . . . . 3 . . . . . 2 . . 4 . Insert Component 8 | . . . . . . . . . . . . . . . 2 . . . . 2 . . . . . 2 . . 2 . Analyze 4 | . . . . . . . . . . . . . . . 1 . . . . 1 . . . . . . . . 2 . Retrieve Study 4 | . . . 2 . . 1 . . . . . . . . 1 . . . . . . . . . . . . . . . Garrison Access Hacks 8 | . . . . . . 1 . . . . . . . . 1 . . . . 2 . . . . 1 1 . . 2 . Seal Access 8 | . . . . . . 1 . . . . . . . . 1 . . . . 2 . . . . 1 1 . . 2 . Unauthorized Hacks 50 | . . . 1 . 8 2 . . 9 . . 6 . . 9 . . . . 7 . . . . 3 . . . 5 . Terminals 40 | . . . 1 . 6 2 . . 7 . . 6 . . 7 . . . . 7 . . . . 1 . . . 3 . Assimilate 4 | . . . . . . 1 . . . . . . . . 1 . . . . . . . . . . . . . 2 . Botnet 11 | . . . 1 . 1 1 . . 2 . . 1 . . 1 . . . . 2 . . . . 1 . . . 1 . Skim 20 | . . . . . 5 . . . 5 . . . . . 5 . . . . 5 . . . . . . . . . . Sabotage 5 | . . . . . . . . . . . . 5 . . . . . . . . . . . . . . . . . . Fabricators 6 | . . . . . . . . . . . . . . . 2 . . . . . . . . . 2 . . . 2 . Liberate 3 | . . . . . . . . . . . . . . . 1 . . . . . . . . . 1 . . . 1 . Fabnet 1 | . . . . . . . . . . . . . . . . . . . . . . . . . . . . . 1 . Haulers 2 | . . . . . . . . . . . . . . . 1 . . . . . . . . . 1 . . . . . Repair Stations . | . . . . . . . . . . . . . . . . . . . . . . . . . . . . . . . Recycling Units 4 | . . . . . 2 . . . 2 . . . . . . . . . . . . . . . . . . . . . Reject 1 | . . . . . . . . . 1 . . . . . . . . . . . . . . . . . . . . . Mask 1 | . . . . . . . . . 1 . . . . . . . . . . . . . . . . . . . . . Tunnel 2 | . . . . . 2 . . . . . . . . . . . . . . . . . . . . . . . . . Scanalyzers . | . . . . . . . . . . . . . . . . . . . . . . . . . . . . . . . Garrison Access . | . . . . . . . . . . . . . . . . . . . . . . . . . . . . . . . Data Cores Recovered 8 | . . . . . . . . . . . . 1 . . . . . . . 1 . . . . . 2 1 1 2 . Used 4 | . . . . . . . . . . . . 1 . . . . . . . 1 . . . . . . . . 2 . Hacking Detections 82 | . . . 3 8 8 8 . 2 15 1 . 3 . . 7 . . . . 5 . . . . 4 4 1 . 12 1 Full Trace Events 18 | . . . . 3 1 1 . 1 3 . . . . . 1 . . . . . . . . . . . . . 8 . Feedback Events 1 | . . . . . . . . . . . . . . . . . . . . . . . . . . . . . 1 . Hackware Fried 1 | . . . . . . . . . . . . . . . . . . . . . . . . . . . . . 1 . Feedback Blocked . | . . . . . . . . . . . . . . . . . . . . . . . . . . . . . . . Robot Schematics Acquired 6 | . . . . . 1 . . . . . . . . . . . . . . . . . . . . 2 3 . . . Robots Built 7 | . . . . . . . . . . . . . . . 3 . . . . 4 . . . . . . . . . . Authchips 2 | . . . . . . . . . . . . . . . . . . . . 2 . . . . . . . . . . Time 285 | . . . . . . . . . . . . . . . 169 . . . . 116 . . . . . . . . . . Total Robot Build Rating 30 | . . . . . . . . . . . . . . . 18 . . . . 12 . . . . . . . . . . Part Schematics Acquired 30 | . . . . . . . . . . . . . . . 1 . . . . 1 . . 4 . . 8 14 . 2 . Parts Built 1 | . . . . . . . . . . . . . . . . . . . . . . . . . . . . . 1 . Authchips . | . . . . . . . . . . . . . . . . . . . . . . . . . . . . . . . Time 74 | . . . . . . . . . . . . . . . . . . . . . . . . . . . . . 74 . Total Part Build Rating 9 | . . . . . . . . . . . . . . . . . . . . . . . . . . . . . 9 . Part Studies Acquired 4 | . . . 2 . . 1 . . . . . . . . 1 . . . . . . . . . . . . . . . Parts Repaired 4 | . . . . . . . . . . . . . . . 2 . . . . 1 . . . . . . . . 1 . Time 243 | . . . . . . . . . . . . . . . 132 . . . . 86 . . . . . . . . 25 . Parts Recycled . | . . . . . . . . . . . . . . . . . . . . . . . . . . . . . . . Recycled Matter . | . . . . . . . . . . . . . . . . . . . . . . . . . . . . . . . Retrieved Matter . | . . . . . . . . . . . . . . . . . . . . . . . . . . . . . . . Retrieved Components 22 | . . . . 10 2 . . 2 3 . . . . . 3 . . . . 2 . . . . . . . . . . Parts Scanalyzed 4 | . . . . . . . . . . . . . . . 1 . . . . 1 . . . . . . . . 2 . Part Schematics Acquired 4 | . . . . . . . . . . . . . . . 1 . . . . 1 . . . . . . . . 2 . Parts Damaged 1 | . . . . . . . . . . . . . . . 1 . . . . . . . . . . . . . . . Bothacking | -11 -10 -10 -8 -8 -8 -6 -6 -6 -6 -6 -6 -6 -5 -5 -5 -5 -5 -5 -4 -4 -4 -4 -4 -3 -3 -3 -3 -2 -1 -1 ------------ Run | Yrd Mat Sub Mat Sto Rec Fac Was Fac Ext Cet Arc Hub Fac Was Fac Upp Upp War Pro Fac Upp Upp Zhi Pro Res Qua Frg Res Acc Com Used RIF Installer . | . . . . . . . . . . . . . . . . . . . . . . . . . . . . . . . Robots Hacked 6 | . . . . . . . . . 5 . . . . 1 . . . . . . . . . . . . . . . . Non-combat . | . . . . . . . . . . . . . . . . . . . . . . . . . . . . . . . Combat 6 | . . . . . . . . . 5 . . . . 1 . . . . . . . . . . . . . . . . Robot Hacks Applied 6 | . . . . . . . . . 5 . . . . 1 . . . . . . . . . . . . . . . . parse_system 6 | . . . . . . . . . 5 . . . . 1 . . . . . . . . . . . . . . . . Relay Couplers Released 11 | . . . . 2 . . . 2 . . . . . . . . . . . . . . . . . . 1 3 3 . Machine Destruction 11 | . . . . 2 . . . 2 . . . . . . . . . . . . . . . . . . 1 3 3 . Fabnet Peak Effective % . | . . . . . . . . . . . . . . . . . . . . . . . . . . . . . . . Robots Rewired 31 | . . . . . 13 . . . 13 . . . . . . . . 5 . . . . . . . . . . . . Allies Hacked 1 | . . . . . . . . . . . . . . . 1 . . . . . . . . . . . . . . . Hacks Repelled . | . . . . . . . . . . . . . . . . . . . . . . . . . . . . . . . Allies | -11 -10 -10 -8 -8 -8 -6 -6 -6 -6 -6 -6 -6 -5 -5 -5 -5 -5 -5 -4 -4 -4 -4 -4 -3 -3 -3 -3 -2 -1 -1 -------- Run | Yrd Mat Sub Mat Sto Rec Fac Was Fac Ext Cet Arc Hub Fac Was Fac Upp Upp War Pro Fac Upp Upp Zhi Pro Res Qua Frg Res Acc Com Total Allies 78 | . . . . . 13 1 . . 27 5 . . . 19 3 . . 5 . 4 . . . . . . . . 1 . Largest Group 21 | . . . . . 9 9 . . 21 21 16 15 . 19 18 . . 5 . 4 . . . . . . . . 1 . Highest-Rated Group 1099 | . . . . . 139 113 . . 768 1099 791 771 . 702 652 . . 271 . 84 . . . . . . . . 45 . Highest-Rated Ally 159 | . . . . . 34 34 . . 159 159 96 96 . 50 50 . . 68 . 21 . . . . . . . . 45 . Total Orders 10 | . . . . . . 1 . . . 2 . . . . . . . 7 . . . . . . . . . . . . STAY 5 | . . . . . . . . . . 1 . . . . . . . 4 . . . . . . . . . . . . FOLLOW 4 | . . . . . . . . . . 1 . . . . . . . 3 . . . . . . . . . . . . PICKUP 1 | . . . . . . 1 . . . . . . . . . . . . . . . . . . . . . . . . Ally Attacks 514 | . . . . . 15 13 . . 151 35 2 122 . . 156 . . 10 . 10 . . . . . . . . . . Total Damage 13256 | . . . . . 1090 246 . . 2473 957 43 3077 . . 4630 . . 420 . 320 . . . . . . . . . . Kills 93 | . . . . . 16 . . . 22 7 . 18 . . 27 . . 3 . . . . . . . . . . . . Allies Corrupted 10 | . . . . . . . . . 2 . . 7 . . . . . . . 1 . . . . . . . . . . Allies Melted 4 | . . . . . . . . . 1 . . . . . . . . . . . . . . . . . . . 1 2 Intel | -11 -10 -10 -8 -8 -8 -6 -6 -6 -6 -6 -6 -6 -5 -5 -5 -5 -5 -5 -4 -4 -4 -4 -4 -3 -3 -3 -3 -2 -1 -1 ------- Run | Yrd Mat Sub Mat Sto Rec Fac Was Fac Ext Cet Arc Hub Fac Was Fac Upp Upp War Pro Fac Upp Upp Zhi Pro Res Qua Frg Res Acc Com Active Infowar (turns) 13457 | . 349 1801 1116 172 . 356 . 210 . . . . 93 175 604 224 218 347 . 1030 142 161 386 160 188 1487 1449 1062 951 776 Optics 1127 | . . . . . . . . . . . . . . . . . . . . . . . . . . . 527 . . 600 Sensors 5968 | . . . . . . . . . . . . . . . 604 . . . . . 137 161 386 160 188 1364 882 1062 951 73 IFF 168 | . . . . . . . . . . . . . . . . . . . . 168 . . . . . . . . . . Structural 226 | . . . . . . . . . . . . . . . . . . . . . . . . . . . . . 151 75 Traps 1669 | . . . . . . 356 . 1 . . . . . . . . . . . . . . . . . 764 548 . . . Seismic 3438 | . 349 1801 1116 172 . . . . . . . . . . . . . . . . . . . . . . . . . . Triangulation 906 | . . . . . . . . . . . . . . . . . . . . . . . . . . . . 627 279 . Cloaking 4668 | . . . . . . . . . . . . . . . . . . 153 . 556 56 161 386 160 181 448 345 1000 951 271 Jamming 6603 | . . . . . . . . 210 . . . . 93 175 . 224 218 194 . 812 142 161 44 149 188 450 1420 1048 951 124 ID Mask 1 | . . . . . . . . . . . . . . . . . . . . . . . . . . . . . 1 . Robot Analysis Total 5 | . . . . . 1 . . . . . . . . . . . . . . . . . 4 . . . . . . . Derelict Logs Recovered 6 | . . . . . . . . . . . . . . . . 2 1 . 2 . 1 . . . . . . . . . Drone Launches . | . . . . . . . . . . . . . . . . . . . . . . . . . . . . . . . Drone Recoveries . | . . . . . . . . . . . . . . . . . . . . . . . . . . . . . . . Exploration | -11 -10 -10 -8 -8 -8 -6 -6 -6 -6 -6 -6 -6 -5 -5 -5 -5 -5 -5 -4 -4 -4 -4 -4 -3 -3 -3 -3 -2 -1 -1 ------------- Run | Yrd Mat Sub Mat Sto Rec Fac Was Fac Ext Cet Arc Hub Fac Was Fac Upp Upp War Pro Fac Upp Upp Zhi Pro Res Qua Frg Res Acc Com Turns Passed 25701 | . 540 1801 1212 1218 3214 1233 106 348 1802 734 183 581 97 631 1248 616 973 621 304 1083 142 161 386 160 188 1827 1503 1062 951 776 Spaces Moved 27804 | 1 371 857 519 563 1859 1259 146 401 1156 445 47 478 97 660 1317 580 551 1099 389 2122 440 509 246 363 490 2696 2095 2150 2473 1425 Core . | . . . . . . . . . . . . . . . . . . . . . . . . . . . . . . . Treads 20076 | . . 804 519 563 1858 758 . . 988 445 47 478 18 . 846 5 . . 389 2122 440 509 189 . . 955 2095 2150 2473 1425 Legs 986 | 1 371 53 . . . . . . . . . . . . . . . 561 . . . . . . . . . . . . Wheels . | . . . . . . . . . . . . . . . . . . . . . . . . . . . . . . . Hover 2387 | . . . . . . 501 146 401 129 . . . 79 660 471 . . . . . . . . . . . . . . . Flight 4355 | . . . . . 1 . . . 39 . . . . . . 575 551 538 . . . . 57 363 490 1741 . . . . Fastest Speed 26 | 120 120 120 160 148 64 64 64 64 51 51 95 95 72 72 48 37 37 29 29 29 29 29 29 26 29 29 29 29 29 29 Average Speed 53 | 120 120 183 163 160 96 67 64 64 57 96 109 95 76 72 56 37 37 40 29 29 29 29 29 28 29 29 29 29 29 29 Slowest Speed 772 | 120 120 240 240 240 772 172 64 64 207 183 183 95 95 72 72 48 37 169 29 29 29 29 29 29 29 29 29 29 29 29 Overloaded Moves 3 | . . . . . . . . . . . . . . . . . . . . . . . . 3 . . . . . . Propulsion Burnouts . | . . . . . . . . . . . . . . . . . . . . . . . . . . . . . . . Robots Hopped 21 | . . . . . . . . . . . . . . . . . 1 2 . . . . . 2 5 11 . . . . Potential Cave-ins 1 | . . . . . . . . . . . . . . . . . . 1 . . . . . . . . . . . . Cave-ins Triggered . | . . . . . . . . . . . . . . . . . . . . . . . . . . . . . . . Teleports 3 | . . . . . . . . . . . . . . . . . . . . . . . . . . 2 1 . . . Exploration Rate (%) 53 | 2 33 42 46 70 94 41 98 16 87 68 55 48 3 94 25 66 62 84 56 46 65 54 62 54 13 94 40 47 60 46 Regions Visited 30 Branch Regions 18 Pre-discovered Areas 12 | . . 1 . . 4 . . . . . . . . . . . 1 . . 1 1 1 3 . . . . . . . Known Exits Taken 18 | . . . 1 . . . . 1 1 . . 1 . . 1 1 1 . 1 1 1 1 1 1 1 1 1 1 1 . Unknown Exits Taken 8 | 1 1 1 . 1 1 . . . . 1 1 . . . . . . 1 . . . . . . . . . . . . Scrap Searched 14 | . . 4 . . . . . . . . . . . . . 3 3 . 1 . 2 1 . . . . . . . . Spaces Dug 126 | . . . . . 1 9 . 1 4 . . 7 . . 2 4 . . . 3 . . . 2 1 1 40 . 49 2 Terrain Destroyed 1214 | . . 2 3 . 3 48 . 15 20 15 3 196 . 8 61 5 1 1 5 108 . 3 1 18 4 16 173 246 143 116 Melee . | . . . . . . . . . . . . . . . . . . . . . . . . . . . . . . . Projectile 905 | . . 2 3 . 3 36 . 15 20 15 3 29 . 8 25 5 1 1 5 34 . 3 1 18 4 16 173 246 123 116 AOE 309 | . . . . . . 12 . . . . . 167 . . 36 . . . . 74 . . . . . . . . 20 . Terrain Rammed . | . . . . . . . . . . . . . . . . . . . . . . . . . . . . . . . Walls Destroyed . | . . . . . . . . . . . . . . . . . . . . . . . . . . . . . . . Machines Disabled . | . . . . . . . . . . . . . . . . . . . . . . . . . . . . . . . Actions | -11 -10 -10 -8 -8 -8 -6 -6 -6 -6 -6 -6 -6 -5 -5 -5 -5 -5 -5 -4 -4 -4 -4 -4 -3 -3 -3 -3 -2 -1 -1 --------- Run | Yrd Mat Sub Mat Sto Rec Fac Was Fac Ext Cet Arc Hub Fac Was Fac Upp Upp War Pro Fac Upp Upp Zhi Pro Res Qua Frg Res Acc Com Total 36995 | . 433 971 740 741 3249 1567 158 472 2215 719 172 561 121 767 1723 973 1312 1241 569 2490 451 517 556 392 517 3693 2830 2468 2658 1719 Wait 6424 | . 24 4 76 23 1209 152 12 13 790 158 109 14 15 45 228 372 750 61 164 189 8 4 291 5 7 875 419 150 84 173 Move 27734 | . 370 856 518 562 1858 1259 145 400 1155 444 46 477 97 659 1316 579 548 1094 388 2121 439 508 245 358 479 2673 2094 2149 2472 1425 Hop 21 | . . . . . . . . . . . . . . . . . 1 2 . . . . . 2 5 11 . . . . Pick Up 291 | . 7 11 23 15 15 23 . 10 13 22 3 4 3 . 18 3 1 10 2 15 . . 5 . 2 22 37 5 13 9 Fast Attach 63 | . 1 2 1 4 1 2 . 2 2 4 2 2 . 3 7 . . 5 . 5 . . 3 . 4 2 5 . 3 3 Attach 158 | . 1 4 11 8 1 13 1 1 9 8 1 3 4 . 8 1 1 1 . 10 1 . 2 . 2 15 23 9 10 10 Detach 101 | . . 1 2 . 10 4 . 3 6 6 . 2 2 . 6 . 1 6 . 5 . . 1 . 1 11 15 5 7 7 Swap 112 | . 2 4 4 17 3 1 . 3 3 . 1 3 . 1 8 2 3 1 . 8 2 . . 2 1 7 25 2 6 3 Drop 235 | . 2 7 10 20 24 14 . 11 10 23 3 4 . 3 14 6 1 7 2 15 . . 4 . 2 21 22 4 1 5 Fire 1556 | . 19 82 86 81 31 91 . 29 99 54 7 50 . 55 114 10 6 38 13 118 1 5 5 25 14 56 190 141 54 82 Melee 6 | . . . . . . . . . 5 . . . . 1 . . . . . . . . . . . . . . . . Ram 2 | . . . . . . 2 . . . . . . . . . . . . . . . . . . . . . . . . Kick 7 | . 7 . . . . . . . . . . . . . . . . . . . . . . . . . . . . . Crush 45 | . . . 8 11 . 6 . . 1 . . 2 . . 4 . . . . 4 . . . . . . . 3 5 1 Escape Stasis 2 | . . . . . . . . . 2 . . . . . . . . . . . . . . . . . . . . . Rewire 237 | . . . . . 97 . . . 120 . . . . . . . . 16 . . . . . . . . . . 3 1 Trap 1 | . . . 1 . . . . . . . . . . . . . . . . . . . . . . . . . . . Miscellaneous . | . . . . . . . . . . . . . . . . . . . . . . . . . . . . . . . Route ------- -11/Scrapyard -10/Materials (discovered 3 exits: [*Mat] / [*Min] / *Sub) -10/Subcaves (discovered 3 exits: *Mat x2 / [*Scr]) -8/Materials -8/Storage (discovered 2 exits: [*Fac] / *Rec) -8/Recycling -6/Factory (discovered 5 exits: *Fac / *Low x2 / Ext x2) -6/Waste -6/Factory (discovered 4 exits: *Low x2 / *Ext x2) -6/Extension (discovered 3 exits: *Fac x2 / *Cet) -6/Cetus (discovered 2 exits: *Fac / [*Arc]) -6/Archives -6/Hub_04(d) (discovered 4 exits: *Fac x4) -5/Factory -5/Waste -5/Factory (discovered 4 exits: *Fac x2 / *Upp x2) -5/Upper Caves -5/Upper Caves (discovered 2 exits: Fac / *War) -5/Warlord -4/Proximity Caves -4/Factory (discovered 7 exits: *Res x4 / *Upp x2 / Arm) -4/Upper Caves -4/Upper Caves -4/Zhirov -3/Proximity Caves -3/Research (discovered 2 exits: *Qua x2) -3/Quarantine (discovered 3 exits: *Res / *Sec / *Frg) -3/Protoforge -2/Research (discovered 2 exits: *Acc x2) -1/Access (discovered 2 exits: *Sur / *Com) -1/Command (discovered 2 exits: *Sur x2) By MAIN.C's Side History --------- Turn | Location | Event 1 | -11/Scrapyard | Discovered new exit (range 0) 1 | -11/Scrapyard | Entered Materials 128 | -10/Materials | Discovered new exit (range 6) 310 | -10/Materials | Build established: Mutant 403 | -10/Materials | Discovered new exit (range 15) 482 | -10/Materials | Discovered new exit (range 13) 541 | -10/Materials | Entered Subcaves 542 | -10/Subcaves | Approached by a straggling Scientist 577 | -10/Subcaves | Scientist uncovered a shortcut to Scraptown 781 | -10/Subcaves | Shifting Twisted Machinery released Battle Rifle 828 | -10/Subcaves | Discovered new exit (range 16) 831 | -10/Subcaves | Shifting Twisted Machinery released Sub. Machine Gun 954 | -10/Subcaves | A swath of the cavern ceiling suddenly collapsed 1088 | -10/Subcaves | Learned location of Zion (-7) 1088 | -10/Subcaves | Met a Zionite searching for "candidates" 1174 | -10/Subcaves | A swath of the cavern ceiling suddenly collapsed 1227 | -10/Subcaves | Shifting Twisted Machinery released Sub. Power Source 1923 | -10/Subcaves | Shifting Twisted Machinery released Humpback 1957 | -10/Subcaves | Core integrity fell below 50% 2054 | -10/Subcaves | Discovered new exit (range 11) 2140 | -10/Subcaves | Visited 4L-MR0's lab 2169 | -10/Subcaves | Found Tower Shield 2342 | -10/Subcaves | Entered Materials 2342 | -8/Materials | Evolved 4 slots: Propulsion x2, Utility x1, Weapon x1 2618 | -8/Materials | Identified exit to Storage 3460 | -8/Materials | Attached Tower Shield, gained temporary slots: Power, Propulsion x2, Utility x2, Weapon x2 3554 | -8/Materials | Entered Storage 3766 | -8/Storage | Destroyed 9 combat bots 4321 | -8/Storage | Build established: Scavenger-Tank 4441 | -8/Storage | Discovered new exit (range 8) 4754 | -8/Storage | First assault squad dispatched 4766 | -8/Storage | Used back door to open Recycling access 4766 | -8/Storage | Discovered new exit (range 5) 4772 | -8/Storage | Entered Recycling 5061 | -8/Recycling | Entered Scraplab 5435 | -8/Recycling | Discovered new exit (range 15) 5513 | -8/Recycling | Lost 4 allies 5835 | -8/Recycling | Learned 2 Storage zone layouts 5838 | -8/Recycling | Build established: Commander-Tank 5925 | -8/Recycling | Found Prototype Device 5926 | -8/Recycling | Identified Scrap Engine 5942 | -8/Recycling | Learned Storage emergency access door positions 6231 | -8/Recycling | Build established: Commander-Mutant 6572 | -8/Recycling | Build established: Commander-Construct 7986 | -8/Recycling | Entered Factory 7986 | -6/Factory | Accompanied by 9 allies 7986 | -6/Factory | Evolved 4 slots: Utility x3, Weapon x1 7987 | -6/Factory | Identified exit to Lower Caves 7987 | -6/Factory | Identified exit to Extension 8104 | -6/Factory | Lost 4 allies 8143 | -6/Factory | Central database locked down 8164 | -6/Factory | Spotted B-75 Beast 8182 | -6/Factory | Lost 3 allies 8201 | -6/Factory | Destroyed B-75 Beast 8334 | -6/Factory | Discovered new exit (range 6) 8747 | -6/Factory | Build established: Construct 9159 | -6/Factory | Cargo convoy interrupted 9219 | -6/Factory | Sucked down chute 9219 | -6/Factory | Entered Waste 9234 | -6/Waste | EMP discharged 9234 | -6/Waste | System corruption reached 10% 9235 | -6/Waste | Spotted C-40 Crusher 9240 | -6/Waste | Spotted C-40 Crusher 9241 | -6/Waste | Spotted C-40 Crusher 9279 | -6/Waste | Spotted C-40 Crusher 9289 | -6/Waste | Spotted C-40 Crusher 9303 | -6/Waste | Spotted C-40 Crusher 9319 | -6/Waste | Discovered new exit (range 11) 9325 | -6/Waste | Entered Factory 9474 | -6/Factory | Discovered exit to Lower Caves (range 16) 9673 | -6/Factory | Entered Extension 10470 | -6/Extension | Rescued a captive Derelict 10471 | -6/Extension | Rescued a captive Derelict 10498 | -6/Extension | Rescued a captive Derelict 10500 | -6/Extension | Rescued a captive Derelict 10531 | -6/Extension | Rescued a captive Derelict 10532 | -6/Extension | Rescued a captive Derelict 10546 | -6/Extension | Rescued a captive Derelict 10701 | -6/Extension | Identified exit to Factory 10701 | -6/Extension | Identified exit to Cetus 10765 | -6/Extension | Learned location of 2 exits from Proximity Caves 10800 | -6/Extension | Spotted B-75 Beast 10811 | -6/Extension | Allies destroyed B-75 Beast 10861 | -6/Extension | Spotted B-75 Beast 10899 | -6/Extension | Learned location of 2 exits from Proximity Caves 10900 | -6/Extension | Destroyed B-75 Beast 10943 | -6/Extension | Learned location of 1 exit from Lower Caves 10995 | -6/Extension | Learned location of 1 exit from Extension 11004 | -6/Extension | Rescued a captive Derelict 11005 | -6/Extension | Rescued a captive Derelict 11082 | -6/Extension | Rescued a captive Derelict 11094 | -6/Extension | Rescued a captive Derelict 11154 | -6/Extension | Rescued A7 11168 | -6/Extension | Core integrity fell below 50% 11234 | -6/Extension | Rescued a captive Derelict 11235 | -6/Extension | Rescued a captive Derelict 11344 | -6/Extension | Build established: Commander-Construct 11475 | -6/Extension | Entered Cetus 11475 | -6/Cetus | Accompanied by 20 allies (A7) 11480 | -6/Cetus | Acquired a Cetus Manufacturing Module code from A7 11483 | -6/Cetus | Spotted Cetus Guard 11483 | -6/Cetus | Spotted Cetus Guard 11485 | -6/Cetus | Spotted Cetus Guard 11486 | -6/Cetus | Spotted Cetus Guard 11499 | -6/Cetus | Allies destroyed Cetus Guard 11504 | -6/Cetus | Allies destroyed Cetus Guard 11506 | -6/Cetus | Destroyed Cetus Guard 11511 | -6/Cetus | Allies destroyed Cetus Guard 11535 | -6/Cetus | Lost 3 allies 11538 | -6/Cetus | Started Cetus Manufacturing Module 11563 | -6/Cetus | Manufactured an Enhanced Grunt 11565 | -6/Cetus | Escorted A7 to Cetus Mainframe 11588 | -6/Cetus | Manufactured an Enhanced Grunt 11613 | -6/Cetus | Manufactured an Enhanced Grunt 11633 | -6/Cetus | Discovered new exit (range 16) 11638 | -6/Cetus | Manufactured an Enhanced Grunt 11663 | -6/Cetus | Manufactured an Enhanced Grunt 11684 | -6/Cetus | Spotted Cetus Guard 11684 | -6/Cetus | Spotted Cetus Guard 11687 | -6/Cetus | Spotted Cetus Guard 11687 | -6/Cetus | Spotted Cetus Guard 11693 | -6/Cetus | Allies destroyed Cetus Guard 11700 | -6/Cetus | Destroyed Cetus Guard 11702 | -6/Cetus | Destroyed Cetus Guard 11706 | -6/Cetus | Destroyed Cetus Guard 11712 | -6/Cetus | Discovered exit to Factory (range 15) 11715 | -6/Cetus | Met Revision 17 11735 | -6/Cetus | Lost 4 allies 11995 | -6/Cetus | Murdered A7 11996 | -6/Cetus | Extracted ID and sensor layout for unrecognized location from A7's data core 12028 | -6/Cetus | Found Med. Regenerative Plating 12209 | -6/Cetus | Entered Archives 12209 | -6/Archives | Accompanied by 16 allies 12323 | -6/Archives | Met Zhirov 12329 | -6/Archives | Reinforcements dispatched to Archives 12329 | -6/Archives | Discovered new exit (range 16) 12374 | -6/Archives | Reinforcements dispatched to Archives 12392 | -6/Archives | Entered Hub_04(d) 12392 | -6/Hub_04(d) | Accompanied by 15 allies 12392 | -6/Hub_04(d) | Discovered exit to Factory (range 10) 12442 | -6/Hub_04(d) | Spotted B-75 Beast 12459 | -6/Hub_04(d) | Allies destroyed B-75 Beast 12718 | -6/Hub_04(d) | Network Hub disabled 12728 | -6/Hub_04(d) | Network Hub disabled 12761 | -6/Hub_04(d) | Watched by a mysterious "MATRIX" hacker 12771 | -6/Hub_04(d) | Spotted Lightning 12771 | -6/Hub_04(d) | Spotted Lightning 12786 | -6/Hub_04(d) | Allies destroyed Lightning 12792 | -6/Hub_04(d) | Allies destroyed Lightning 12798 | -6/Hub_04(d) | Found Prototype Device 12799 | -6/Hub_04(d) | Identified Exp. EM Shield 12807 | -6/Hub_04(d) | Lost 6 allies 12810 | -6/Hub_04(d) | Found Prototype Energy Cannon 12828 | -6/Hub_04(d) | Network Hub disabled 12898 | -6/Hub_04(d) | Spotted Lightning 12899 | -6/Hub_04(d) | Spotted Lightning 12900 | -6/Hub_04(d) | Spotted Lightning 12943 | -6/Hub_04(d) | Network Hub disabled 12973 | -6/Hub_04(d) | Entered Factory 12973 | -5/Factory | Evolved 2 slots: Utility x2 13070 | -5/Factory | Sucked down chute 13070 | -5/Factory | Entered Waste 13083 | -5/Waste | Spotted C-40 Crusher 13093 | -5/Waste | Build established: Scavenger-Construct 13097 | -5/Waste | Spotted C-40 Crusher 13097 | -5/Waste | Spotted C-40 Crusher 13102 | -5/Waste | Destroyed C-40 Crusher 13117 | -5/Waste | Destroyed C-40 Crusher 13137 | -5/Waste | Destroyed C-40 Crusher 13143 | -5/Waste | Spotted C-40 Crusher 13172 | -5/Waste | Destroyed C-40 Crusher 13183 | -5/Waste | Spotted C-40 Crusher 13192 | -5/Waste | Spotted C-40 Crusher 13218 | -5/Waste | Destroyed C-40 Crusher 13263 | -5/Waste | Destroyed C-40 Crusher 13393 | -5/Waste | Discovered new exit (range 12) 13426 | -5/Waste | Warlord forces began an assault 13701 | -5/Waste | Entered Factory 13701 | -5/Factory | Accompanied by 18 allies 13709 | -5/Factory | Identified exit to Upper Caves 13843 | -5/Factory | Discovered new exit (range 12) 14030 | -5/Factory | Lost 3 allies 14097 | -5/Factory | Repaired Broken Triangulator 14160 | -5/Factory | Repaired Adv. Particle Charger 14470 | -5/Factory | Cargo convoy interrupted 14500 | -5/Factory | Found Prototype Device 14500 | -5/Factory | Identified Exp. Actuator Array 14505 | -5/Factory | Found Prototype Device 14505 | -5/Factory | Identified Exp. Shock Absorption System 14530 | -5/Factory | Lost 6 allies 14601 | -5/Factory | Fabricated B-60 Warrior? 14601 | -5/Factory | First assault squad dispatched 14602 | -5/Factory | Lost 3 parts (1p1n1u) 14619 | -5/Factory | Found PL-3XN's Ring of Power 14746 | -5/Factory | Learned 8 Quarantine zone layouts 14801 | -5/Factory | Identified exit to Factory 14846 | -5/Factory | Learned location of 1 exit from Upper Caves 14882 | -5/Factory | Build established: Construct 14883 | -5/Factory | Learned 4 Quarantine zone layouts 14910 | -5/Factory | Learned Testing trap positions 14946 | -5/Factory | Learned Testing stockpile data 14949 | -5/Factory | Entered Upper Caves 14950 | -5/Upper Caves | Identified exit to Upper Caves 15357 | -5/Upper Caves | Learned Factory stockpile data 15360 | -5/Upper Caves | Found DCF Scrap (15 items) 15394 | -5/Upper Caves | Learned Factory stockpile data 15493 | -5/Upper Caves | Attracted the attention of an 0b10 outpost 15565 | -5/Upper Caves | Entered another Upper Caves area 15565 | -5/Upper Caves | Discovered exit to Factory (range 14) 16466 | -5/Upper Caves | Attracted the attention of an 0b10 outpost 16476 | -5/Upper Caves | Attracted the attention of an 0b10 checkpoint 16532 | -5/Upper Caves | Discovered new exit (range 8) 16534 | -5/Upper Caves | Identified exit to Warlord 16538 | -5/Upper Caves | Entered Warlord 16645 | -5/Warlord | Visited the Vortex Lab 16649 | -5/Warlord | Found Prototype Energy Gun 16650 | -5/Warlord | Found Prototype Energy Gun 16652 | -5/Warlord | Found Prototype Energy Gun 16655 | -5/Warlord | Found Prototype Energy Gun 16667 | -5/Warlord | Warlord's base attacked by MAIN.C 16732 | -5/Warlord | Found Prototype Processor 16732 | -5/Warlord | Identified Exp. Core Analyzer 16735 | -5/Warlord | Found Prototype Device 16735 | -5/Warlord | Identified System Purifier 16741 | -5/Warlord | Found Prototype Hackware 16741 | -5/Warlord | Identified Ghost Barrier 16745 | -5/Warlord | Found Prototype Device 16745 | -5/Warlord | Identified Exp. Cloaking Device 16759 | -5/Warlord | Found Prototype Reactor 16869 | -5/Warlord | Met Warlord 16919 | -5/Warlord | Build established: Commander-Construct 16965 | -5/Warlord | Lost 3 allies 17017 | -5/Warlord | Warlord forces counterattacked 17049 | -5/Warlord | Spotted Striker 17060 | -5/Warlord | Destroyed Striker 17103 | -5/Warlord | Spotted Striker 17117 | -5/Warlord | Destroyed Striker 17149 | -5/Warlord | Discovered new exit (range 14) 17153 | -5/Warlord | Destroyed 11 combat bots 17159 | -5/Warlord | Entered Proximity Caves 17164 | -4/Proximity Caves | Lost 18 allies 17363 | -4/Proximity Caves | Attracted the attention of an 0b10 checkpoint 17384 | -4/Proximity Caves | Destroyed 7 combat bots 17397 | -4/Proximity Caves | Build established: Construct 17459 | -4/Proximity Caves | Learned location of 1 exit from Research 17463 | -4/Proximity Caves | Entered Factory 17463 | -4/Factory | Evolved 2 slots: Power x1, Utility x1 17464 | -4/Factory | Identified exit to Armory 17467 | -4/Factory | Identified Vortex Chain Reactor 17569 | -4/Factory | Repaired Broken Adv. Transmission Jammer 17671 | -4/Factory | Unchained authorized (1B-0RG) 17676 | -4/Factory | Identified exit to Upper Caves 17871 | -4/Factory | Build established: Infiltrator-Construct 17889 | -4/Factory | Identified Vortex Shotgun (x4) 17897 | -4/Factory | Spotted B-86 Titan 17900 | -4/Factory | Destroyed B-86 Titan 17963 | -4/Factory | First assault squad dispatched 17970 | -4/Factory | Discovered new exit (range 13) 18105 | -4/Factory | Learned Testing scanalyzer intel 18110 | -4/Factory | Discovered new exit (range 12) 18189 | -4/Factory | Learned Quarantine trap positions 18218 | -4/Factory | Identified exit to Research 18238 | -4/Factory | Learned location of 1 exit from Proximity Caves 18252 | -4/Factory | Learned Testing emergency access door positions 18282 | -4/Factory | Learned 4 Quarantine zone layouts 18314 | -4/Factory | Learned location of 2 exits from Factory 18354 | -4/Factory | Learned Armory stockpile data 18417 | -4/Factory | Destroyed 9 combat bots 18422 | -4/Factory | Build established: Construct 18460 | -4/Factory | Fabricated H-55 Commando (x2) 18520 | -4/Factory | Fabricated H-55 Commando? 18546 | -4/Factory | Entered Upper Caves 18610 | -4/Upper Caves | Learned location of Armory (-4) 18663 | -4/Upper Caves | Discovered new exit (range 15) 18671 | -4/Upper Caves | Identified exit to Upper Caves 18673 | -4/Upper Caves | Encountered a Warlord checkpoint 18688 | -4/Upper Caves | Entered another Upper Caves area 18747 | -4/Upper Caves | Entered an active Warlord outpost 18750 | -4/Upper Caves | Learned Armory security intel 18847 | -4/Upper Caves | Discovered new exit (range 10) 18849 | -4/Upper Caves | Identified exit to Zhirov 18849 | -4/Upper Caves | Entered Zhirov 18849 | -4/Zhirov | Discovered new exit (range 3) 18865 | -4/Zhirov | Learned location of Command (-1) 18865 | -4/Zhirov | Learned location of Testing (-2) 18875 | -4/Zhirov | Found Alien Artifact 18876 | -4/Zhirov | Identified Integrated Dissipator 18876 | -4/Zhirov | Installed Integrated Dissipator, increased core heat dissipation (+20) 18880 | -4/Zhirov | Found Alien Artifact 19235 | -4/Zhirov | Identified exit to Proximity Caves 19235 | -4/Zhirov | Entered Proximity Caves 19378 | -3/Proximity Caves | Spotted B-86 Titan 19382 | -3/Proximity Caves | Destroyed B-86 Titan 19395 | -3/Proximity Caves | Entered Research 19395 | -3/Research | Evolved 2 slots: Utility x2 19396 | -3/Research | Identified exit to Quarantine 19402 | -3/Research | Targeted by mysterious "MATRIX" hacker 19515 | -3/Research | Build established: Infiltrator-Construct 19583 | -3/Research | Entered Quarantine 19584 | -3/Quarantine | Identified exit to Section 7 19584 | -3/Quarantine | Identified exit to Research 19585 | -3/Quarantine | Loaded intel: 19 trap records 19611 | -3/Quarantine | Found Sigix Corpse 19622 | -3/Quarantine | Found Alien Artifact 19622 | -3/Quarantine | Identified Subatomic Replicator 19708 | -3/Quarantine | Cryocooling Duct disabled 19712 | -3/Quarantine | Cryocooling Duct disabled 19723 | -3/Quarantine | Ambient heat levels rising (+20) 19723 | -3/Quarantine | Non-combat units ordered to evacuate 19727 | -3/Quarantine | Ambient heat levels rising (+20) 19727 | -3/Quarantine | Combat units ordered to evacuate 19827 | -3/Quarantine | Quarantine Guard activated 19857 | -3/Quarantine | Spotted Quarantine Guard 19873 | -3/Quarantine | Destroyed Quarantine Guard 19880 | -3/Quarantine | Spotted Quarantine Guard 19881 | -3/Quarantine | Destroyed Quarantine Guard 19881 | -3/Quarantine | Spotted Quarantine Guard 19882 | -3/Quarantine | Destroyed Quarantine Guard 19885 | -3/Quarantine | Spotted Quarantine Guard 19890 | -3/Quarantine | Destroyed Quarantine Guard 19893 | -3/Quarantine | Spotted Quarantine Guard 19895 | -3/Quarantine | Destroyed Quarantine Guard 19895 | -3/Quarantine | Spotted Quarantine Guard 19897 | -3/Quarantine | Destroyed Quarantine Guard 19909 | -3/Quarantine | Spotted Quarantine Guard 19919 | -3/Quarantine | Spotted Quarantine Guard 19920 | -3/Quarantine | Destroyed Quarantine Guard 19929 | -3/Quarantine | Destroyed Quarantine Guard 19965 | -3/Quarantine | Spotted Quarantine Guard 19967 | -3/Quarantine | Destroyed Quarantine Guard 20001 | -3/Quarantine | Spotted Quarantine Guard 20010 | -3/Quarantine | Destroyed Quarantine Guard 20019 | -3/Quarantine | Spotted Quarantine Guard 20021 | -3/Quarantine | Destroyed Quarantine Guard 20044 | -3/Quarantine | Found Alien Artifact 20045 | -3/Quarantine | Identified Dimensional Node Initializer 20045 | -3/Quarantine | Initialized slip node 20048 | -3/Quarantine | Identified Transdimensional Reconstructor 20048 | -3/Quarantine | Warped through subspace to slip node 20174 | -3/Quarantine | Found Prototype Processor 20175 | -3/Quarantine | Identified Exp. Signal Interpreter 20206 | -3/Quarantine | Build established: Construct 20966 | -3/Quarantine | Spotted Fortress 20989 | -3/Quarantine | Destroyed Fortress 20992 | -3/Quarantine | Found Prototype Device 20993 | -3/Quarantine | Identified Thermal Barrier 20995 | -3/Quarantine | Found Prototype Device 20996 | -3/Quarantine | Identified Exp. Force Field 21008 | -3/Quarantine | Found Exp. EM Shield 21034 | -3/Quarantine | Discovered new exit (range 6) 21034 | -3/Quarantine | Spotted Quarantine Guard 21036 | -3/Quarantine | Destroyed Quarantine Guard 21078 | -3/Quarantine | Found Vortex Chain Reactor 21081 | -3/Quarantine | Found Vortex Chain Reactor 21280 | -3/Quarantine | Found Alien Artifact 21281 | -3/Quarantine | Identified Hpw. Transdimensional Reconstructor 21281 | -3/Quarantine | Warped through subspace to slip node 21284 | -3/Quarantine | Found Dimensional Node Initializer 21287 | -3/Quarantine | Found Hpw. Transdimensional Reconstructor 21291 | -3/Quarantine | Found Transdimensional Reconstructor 21293 | -3/Quarantine | Found Transdimensional Reconstructor 21404 | -3/Quarantine | Identified exit to Protoforge 21410 | -3/Quarantine | Entered Protoforge 21440 | -3/Protoforge | Spotted Hotshot 21440 | -3/Protoforge | Spotted Hotshot 21440 | -3/Protoforge | Spotted Hotshot 21440 | -3/Protoforge | Spotted Hotshot 21446 | -3/Protoforge | Spotted Hotshot 21517 | -3/Protoforge | Spotted Hotshot 21517 | -3/Protoforge | Spotted Hotshot 21539 | -3/Protoforge | Spotted Hotshot 21541 | -3/Protoforge | Destroyed Hotshot 21557 | -3/Protoforge | Spotted Hotshot 21557 | -3/Protoforge | Spotted Hotshot 21595 | -3/Protoforge | Destroyed Hotshot 21598 | -3/Protoforge | Discovered exit to Research (range 5) 21604 | -3/Protoforge | Initialized slip node 21610 | -3/Protoforge | Destroyed Hotshot 21616 | -3/Protoforge | Destroyed Hotshot 21620 | -3/Protoforge | Destroyed Hotshot 21657 | -3/Protoforge | Found Prototype Protection 21657 | -3/Protoforge | Identified Cep. Core Shell 21662 | -3/Protoforge | Spotted Hotshot 21665 | -3/Protoforge | Destroyed Hotshot 21667 | -3/Protoforge | Spotted Hotshot 21668 | -3/Protoforge | Spotted Hotshot 21669 | -3/Protoforge | Destroyed Hotshot 21680 | -3/Protoforge | Spotted Hotshot 21682 | -3/Protoforge | Destroyed Hotshot 21687 | -3/Protoforge | Destroyed Hotshot 21759 | -3/Protoforge | Spotted Hotshot 21759 | -3/Protoforge | Destroyed Hotshot 21760 | -3/Protoforge | Spotted Hotshot 21760 | -3/Protoforge | Spotted Hotshot 21763 | -3/Protoforge | Destroyed Hotshot 21763 | -3/Protoforge | Spotted Hotshot 21764 | -3/Protoforge | Superfortress began startup sequence 21766 | -3/Protoforge | Destroyed Hotshot 21768 | -3/Protoforge | Destroyed Hotshot 21789 | -3/Protoforge | Destroyed 9 combat bots 21803 | -3/Protoforge | Spotted Decapitator 21803 | -3/Protoforge | Spotted Decapitator 21803 | -3/Protoforge | Spotted Decapitator 21803 | -3/Protoforge | Spotted Decapitator 21804 | -3/Protoforge | Spotted Immortal 21847 | -3/Protoforge | Destroyed Immortal 21852 | -3/Protoforge | Found Exp. Cloaking Device 21858 | -3/Protoforge | Destroyed Decapitator 21860 | -3/Protoforge | Destroyed Decapitator 21862 | -3/Protoforge | Destroyed Decapitator 21872 | -3/Protoforge | Destroyed Decapitator 21906 | -3/Protoforge | Found Cep. Antigrav Storage Unit 21910 | -3/Protoforge | First assault squad dispatched 21910 | -3/Protoforge | Found Cep. Matter Streamer 21948 | -3/Protoforge | Spotted V293-t 21948 | -3/Protoforge | Spotted V160-w 21948 | -3/Protoforge | Spotted V780-r 21948 | -3/Protoforge | Spotted V578-g 21979 | -3/Protoforge | Destroyed V780-r 22011 | -3/Protoforge | Destroyed V293-t 22025 | -3/Protoforge | Build established: Scavenger-Construct 22032 | -3/Protoforge | Destroyed V578-g 22064 | -3/Protoforge | Destroyed V160-w 22087 | -3/Protoforge | Found Prototype Processor 22088 | -3/Protoforge | Identified Exp. Armor Integrity Analyzer 22098 | -3/Protoforge | Found Prototype Hover Unit 22099 | -3/Protoforge | Found Prototype Device 22100 | -3/Protoforge | Identified Mni. Quantum Capacitor 22105 | -3/Protoforge | Found Prototype Processor 22106 | -3/Protoforge | Identified Spectral Analyzer 22108 | -3/Protoforge | Found Prototype Device 22109 | -3/Protoforge | Identified Exp. EM Disruption Field 22146 | -3/Protoforge | Forge Plexus network access discovered 22164 | -3/Protoforge | Spotted V516-l 22164 | -3/Protoforge | Spotted V552-n 22168 | -3/Protoforge | Spotted V965-z 22175 | -3/Protoforge | Spotted V780-j 22182 | -3/Protoforge | Destroyed V780-j 22386 | -3/Protoforge | Destroyed V516-l 22393 | -3/Protoforge | Destroyed V552-n 22398 | -3/Protoforge | Destroyed V965-z 22428 | -3/Protoforge | Destroyed 8 combat bots 22433 | -3/Protoforge | Spotted Decapitator 22433 | -3/Protoforge | Spotted Decapitator 22437 | -3/Protoforge | Destroyed Decapitator 22442 | -3/Protoforge | Destroyed Decapitator 22460 | -3/Protoforge | Spotted V361-g 22460 | -3/Protoforge | Destroyed V361-g 22462 | -3/Protoforge | Found Cep. Energy Mantle 22543 | -3/Protoforge | Found Exp. Kinecellerator 22548 | -3/Protoforge | Found Exp. Kinecellerator 22567 | -3/Protoforge | Additional patrols dispatched to research labs 22572 | -3/Protoforge | Found Transdimensional Reconstructor 22593 | -3/Protoforge | Spotted AP7-3 22596 | -3/Protoforge | Spotted AP7-3 22598 | -3/Protoforge | Destroyed AP7-3 22598 | -3/Protoforge | Destroyed AP7-3 22610 | -3/Protoforge | Found Prototype Processor 22610 | -3/Protoforge | Identified Exp. Target Analyzer 22628 | -3/Protoforge | Found Faulty Cep. Thermoelectric Network 22629 | -3/Protoforge | Found Faulty Cep. Thermoelectric Network 22632 | -3/Protoforge | Found Cep. Cloak Mesh 22633 | -3/Protoforge | Found Cep. Core Analysis Suite 22703 | -3/Protoforge | Spotted Decapitator 22703 | -3/Protoforge | Spotted Decapitator 22703 | -3/Protoforge | Spotted V689-q 22703 | -3/Protoforge | Spotted V675-c 22712 | -3/Protoforge | Destroyed V689-q 22722 | -3/Protoforge | Destroyed Decapitator 22723 | -3/Protoforge | Spotted Decapitator 22724 | -3/Protoforge | Destroyed Decapitator 22726 | -3/Protoforge | Destroyed Decapitator 22744 | -3/Protoforge | Found Cep. Zero-point Core 22763 | -3/Protoforge | Build established: Construct 22773 | -3/Protoforge | Found Cep. Zero-point Core 22822 | -3/Protoforge | Found Crosscalibrator 22874 | -3/Protoforge | Found Cep. NT7 Matterbank 22875 | -3/Protoforge | Found Cep. Chromion Battery 22910 | -3/Protoforge | Warped through subspace to slip node 22913 | -3/Protoforge | Entered Research 22913 | -2/Research | Warlord forces began assault on 0b10 22913 | -2/Research | Evolved 2 slots: Utility x2 22954 | -2/Research | High security lockdown imminent 23023 | -2/Research | Research machine network offline 23034 | -2/Research | High security lockdown engaged 23036 | -2/Research | Spotted B-90 Cyclops 23072 | -2/Research | Destroyed 20 combat bots 23108 | -2/Research | Met up with Warlord 23189 | -2/Research | Used Subatomic Replicator to replicate Cep. Cloak Mesh 23242 | -2/Research | Destroyed 8 combat bots 23342 | -2/Research | Spotted Striker 23342 | -2/Research | Destroyed Striker 23373 | -2/Research | Discovered new exit (range 10) 23400 | -2/Research | Destroyed 13 combat bots 23410 | -2/Research | Borebot progress halted 23463 | -2/Research | Borebot progress halted 23491 | -2/Research | Identified exit to Access 23500 | -2/Research | Discovered exit to Access (range 15) 23530 | -2/Research | Spotted Striker 23536 | -2/Research | Destroyed Striker 23557 | -2/Research | Destroyed 10 combat bots 23652 | -2/Research | Borebot progress halted 23657 | -2/Research | Build established: Infiltrator-Gunner 23659 | -2/Research | Spotted Executioner 23659 | -2/Research | Spotted Striker 23659 | -2/Research | Destroyed Striker 23661 | -2/Research | Destroyed Executioner 23693 | -2/Research | Destroyed 8 combat bots 23694 | -2/Research | Spotted 85-W8W(L) 23695 | -2/Research | Destroyed 85-W8W(L) 23742 | -2/Research | Met DD-05H 23750 | -2/Research | Destroyed God Mode 23783 | -2/Research | Spotted Striker 23783 | -2/Research | Destroyed Striker 23788 | -2/Research | Spotted Striker 23788 | -2/Research | Destroyed Striker 23795 | -2/Research | Destroyed Striker 23834 | -2/Research | Destroyed 24 combat bots 23913 | -2/Research | Warlord invited to help at Command 23913 | -2/Research | Given Cave Seal Controls access code 23975 | -2/Research | Entered Access 23975 | -1/Access | Evolved 2 slots: Power x1, Utility x1 23991 | -1/Access | Garrison activated, responded to threat 24242 | -1/Access | Spotted B-99 Colossus 24245 | -1/Access | Imp. Hacking Suite fried by hacking feedback 24351 | -1/Access | Build established: Hacker-Gunner 24375 | -1/Access | Discovered new exit (range 7) 24432 | -1/Access | Repaired Triangulator? 24475 | -1/Access | First assault squad dispatched 24861 | -1/Access | Allied Derelicts emerged from ambush trap array 24872 | -1/Access | Spotted CY-PHR 24878 | -1/Access | Destroyed CY-PHR 24886 | -1/Access | Found Procsplitter 24889 | -1/Access | Found Prototype Hackware 24890 | -1/Access | Found Prototype Hackware 24892 | -1/Access | Found Unknown Processor 24894 | -1/Access | Identified ID Mask 24894 | -1/Access | ID Mask engaged 24896 | -1/Access | Found Ghost Barrier 24913 | -1/Access | Fabricated Thermal Barrier? 24922 | -1/Access | Discovered new exit (range 9) 24926 | -1/Access | Identified exit to Command 24926 | -1/Access | Entered Command 24951 | -1/Command | Attached Procsplitter, gained temporary slot: Utility 25048 | -1/Command | Spotted M Guard 25048 | -1/Command | Spotted M Guard 25050 | -1/Command | Spotted Combat Programmer 25050 | -1/Command | Spotted Combat Programmer 25051 | -1/Command | Destroyed Combat Programmer 25052 | -1/Command | Destroyed Combat Programmer 25062 | -1/Command | Destroyed M Guard 25069 | -1/Command | Destroyed M Guard 25069 | -1/Command | All MAIN.C guards destroyed 25083 | -1/Command | Found Prototype Device 25084 | -1/Command | Identified AEGIS Remote Shield 25094 | -1/Command | Met MAIN.C 25094 | -1/Command | 0b10 Conduit disabled 25096 | -1/Command | Destroyed MAIN.C Shell 25098 | -1/Command | Surrendered to MAIN.C 25098 | -1/Command | Loaded intel: 76 machine locations 25098 | -1/Command | Loaded intel: 108 trap records 25098 | -1/Command | Identified exit to Surface 25098 | -1/Command | Discovered exit to Surface (range 47) 25098 | -1/Command | Discovered exit to Surface (range 107) 25137 | -1/Command | Found Gamma Refractor 25142 | -1/Command | Found Prototype Device 25143 | -1/Command | Identified Exp. System Purifier 25145 | -1/Command | Found Prototype Device 25146 | -1/Command | Identified Exp. Transmission Jammer 25152 | -1/Command | MAIN.C activated Command garrisons 25193 | -1/Command | Unknown forces attacked Command 25193 | -1/Command | Spotted EQ-005 25193 | -1/Command | Spotted EQ-003 25193 | -1/Command | Spotted EQ-004 25193 | -1/Command | Spotted EQ-002 25193 | -1/Command | Spotted EQ-009 25193 | -1/Command | Spotted EQ-006 25193 | -1/Command | Spotted EQ-000 25193 | -1/Command | Spotted EQ-017 25195 | -1/Command | Destroyed EQ-002 25199 | -1/Command | Destroyed EQ-000 25200 | -1/Command | Spotted EQ-001 25202 | -1/Command | Destroyed EQ-009 25205 | -1/Command | Destroyed EQ-017 25210 | -1/Command | Destroyed EQ-006 25214 | -1/Command | Lost 3 allies 25215 | -1/Command | Destroyed EQ-001 25217 | -1/Command | Destroyed EQ-005 25219 | -1/Command | Destroyed EQ-004 25222 | -1/Command | Found Exp. Armor Integrity Analyzer 25235 | -1/Command | Spotted EQ-016 25235 | -1/Command | Destroyed EQ-016 25246 | -1/Command | Spotted EQ-011 25246 | -1/Command | Destroyed EQ-011 25267 | -1/Command | Destroyed 10 combat bots 25278 | -1/Command | Spotted EQ-015 25279 | -1/Command | Destroyed EQ-015 25295 | -1/Command | Spotted EQ-018 25298 | -1/Command | Destroyed EQ-018 25300 | -1/Command | Spotted EQ-027 25302 | -1/Command | Destroyed EQ-027 25304 | -1/Command | Spotted EQ-025 25304 | -1/Command | Destroyed EQ-025 25307 | -1/Command | Spotted EQ-019 25309 | -1/Command | Destroyed EQ-019 25353 | -1/Command | Spotted EQ-026 25353 | -1/Command | Destroyed EQ-026 25383 | -1/Command | Spotted EQ-029 25394 | -1/Command | Destroyed EQ-029 25400 | -1/Command | Spotted EQ-045 25405 | -1/Command | Destroyed EQ-045 25408 | -1/Command | Spotted EQ-044 25408 | -1/Command | Destroyed EQ-044 25418 | -1/Command | Spotted EQ-047 25420 | -1/Command | Spotted EQ-035 25424 | -1/Command | Destroyed EQ-047 25426 | -1/Command | Destroyed EQ-035 25430 | -1/Command | Spotted EQ-048 25438 | -1/Command | Destroyed EQ-048 25445 | -1/Command | Spotted EQ-046 25448 | -1/Command | Destroyed EQ-046 25469 | -1/Command | Destroyed 7 combat bots 25499 | -1/Command | Destroyed EQ-063 25499 | -1/Command | Spotted EQ-062 25499 | -1/Command | Spotted EQ-060 25499 | -1/Command | Spotted EQ-061 25501 | -1/Command | Destroyed EQ-062 25503 | -1/Command | Destroyed EQ-061 25512 | -1/Command | Build established: Scavenger-Tank 25617 | -1/Command | Spotted EQ-084 25617 | -1/Command | Spotted EQ-085 25617 | -1/Command | Spotted EQ-087 25617 | -1/Command | Spotted EQ-086 25617 | -1/Command | Destroyed EQ-084 25620 | -1/Command | Destroyed EQ-085 25691 | -1/Command | Spotted EQ-098 25693 | -1/Command | Destroyed EQ-098 25696 | -1/Command | Spotted EQ-105 25697 | -1/Command | Spotted EQ-081 25700 | -1/Command | Destroyed EQ-105 25701 | -1/Command | Attackers retreated from Command 25702 | *** | Fortifying 0b10! Last Messages --------------- 25697_ Plasma Slug penetrates EQ-105. 25697_ Destroyed Prototype Leg. 25697_ Plasma Slug penetrates Wall. 25699_ EQ-105 knocked back. 25699_ MAIN.C knocked back. 25700_ Plasma Slug penetrates EQ-105. 25700_ Destroyed Prototype Leg. 25700_ Plasma Slug penetrates EQ-105. 25700_ Enh. Optical Array melted. 25700_ EQ-105 destroyed. 25701_ ALERT: Enemy forces retreating. MAIN.C: I admit your assistance was pivotal here. It looks like I was right to trust you. This attack appears to have been designed to merely test our defenses, although it was nearly effective enough to force me to take the conflict to the next level. Investigating the origins of these bots should be one of our highest priorities... [Achievement: Stronghold] Map ----- +----------------------------------------------------+ | ???????????????????????????????????????????????#?# | | ???????????????????????????????????????????????#?# | | ???????????????????????????????????????????????#?# | | ???????????????????????????????????????????????#?# | | ???????????????????????????????????????????????#?# | | ???????????????????????????????????????????????#?# | | ??????????????????????????????????###??????????#?# | | ????????????????###################"#######????#?# | | ????????????????#?????###??????## % #??# ##????#?# | | #???????????????#?##### ######## ;] ### "##????#?# | | #???????????????#?#% !%= %= ########## | | ##############??###* % * =!%=]#?#??###?? | | # ] """" #??# # ! / !*%####"""### | | # "T"" #??## !%* !![ 7g | | # #??#?# ! %%d =!!* * | | # #??#?# ] !* *g gb]%] % ! | | # #??#?#""!!! ]%g!gg= %#!*;###### | | # #??#?# "!%* !!!%]*[ ###????? | | # "" #??#?# "=!= !!! =!![!*%[= ########## | | # """ #??#?# " ![!=%%![%!!%!!!!% ; #????#?# | | # """ #??#?#"!" =!]!%]%!%[=[! %# #????##" | | # ""!! #??#?#" !%*g%%!=]!=* %! """#?#????#?# | | # !!!=! #??###!!=%[gg]![!!!["!=""""#?#????#?# | | # !!%*= #??#=; s!M!*%g%%*[ "= " #?#????#?# | | ######=######=!##!; *!!!%!!*!=*"%" " #?#????##" | | [[=!=%!%=*%![%!= !!!@!"!!= " "" " #?#????### | | *[!=!![!!*%%%%!% % !!"" % %" " "" #?#????#?# | | %=!!!!![%!== % !=] %" " #?#????#?# | | !###+####;;;;;#;# " " """!"" " #?#????#?# | | #%%%|=!!!%##?### " """ " "" " """#?#????#?# | | # !!=*=!![#??#?# """ " " " #?#????#?# | | " * !""!#??#?#######################?#????#?# | | # """"#??#?????????????????????????#????#?# | | "^ # ! """"#??###########################????#?# | | %" # "" #?????????????????????????????????#?# | | " # #?????????????????????????????????#?# | | # !=] #?????????????????????????????????#?# | | #######+###?????????????????????????????????#?# | | *=%#???????????????????????????????????#?# | | !!*"#??????????????????????????????????#?# | | ##+####!!"#??????????????????????????????????#?# | | #?# "#??????????????????????????????????#?# | | #?# ##??????????????????????????????????#?# | | " #?# #???????????????????????????????????#?# | | """ #?# #???????????????????????????????????#?# | | """ #?# #???????????????????????????????????#?# | | "" ! #?# #???????????????????????????????????#?# | | =! #?# ############????????????????????????#?# | | #?# #????????????????????????#?# | | #######?# T#????????????????????????#?# | +----------------------------------------------------+ Best States ------------- Heat Dissipation 97 Energy Generation 73 Energy Capacity 1640 Matter Stores 300 Matter Capacity 700 Sight Range 24 Robot Scan Range 16 Terrain Scan Density 10 Jamming Range 16 Cloak Strength 9 Additional Mass Support 9 Armor Coverage 2000 Resistance: KI 30 Resistance: TH 50 Resistance: EX 75 Resistance: EM 75 Evasion (%) 69 Targeting Accuracy 8 Core Analysis 11 Armor Integrity Analysis 50 Recoil Reduction 4 Particle Charging 25 Kinecelleration 66 Offensive Hacking 26 Defensive Hacking 24 Authchip Count 2 Item Schematics ----------------- Triangulator | -5/Factory | Scanalyzed Vortex Chain Reactor | -4/Factory | Scanalyzed Assault Drone Bay | -4/Zhirov | Free Exp. Heat Sink | -4/Zhirov | Free Exp. Optical Array | -4/Zhirov | Free Imp. Arc Thrower | -4/Zhirov | Free Hvy. Proton Cannon | -3/Quarantine | Archive Kinetic Spear | -3/Quarantine | Archive Cld. Proton Cannon | -3/Quarantine | Archive Cld. Plasma Rifle | -3/Quarantine | Archive Gravity Flail | -3/Quarantine | Archive Hvy. Antimatter Reactor | -3/Quarantine | Archive Imp. Matter Neutralizer | -3/Quarantine | Archive Centrium Light Armor Plating | -3/Quarantine | Archive Adv. Myomer Leg | -3/Protoforge | Archive Tactical Quantum Warhead | -3/Protoforge | Archive Gravity Neutralizer | -3/Protoforge | Archive Hvy. Proton Missile Launcher | -3/Protoforge | Archive Adv. Remote Shield | -3/Protoforge | Archive Adv. Variable Charge Gun | -3/Protoforge | Archive Hvy. Dispersion Rifle | -3/Protoforge | Archive Exp. Flexi-carbon Leg | -3/Protoforge | Archive Hvy. Wave Gun | -3/Protoforge | Archive Enh. Coil Gun | -3/Protoforge | Archive Imp. Energy Well | -3/Protoforge | Archive Exp. Signal Interpreter | -3/Protoforge | Archive Exp. EM Disruption Field | -3/Protoforge | Archive Imp. Diametric Drive | -3/Protoforge | Archive Imp. Hacking Suite | -1/Access | Scanalyzed Imp. System Guard | -1/Access | Scanalyzed Robot Schematics ------------------ H-55 Commando | -8/Recycling | Hacked R-10 Processor | -3/Quarantine | Archive T-07 Excavator | -3/Quarantine | Archive E-15 Imp | -3/Protoforge | Archive B-74 Champion | -3/Protoforge | Archive W-44 Eye | -3/Protoforge | Archive Fabricated ------------ B-60 Warrior | x3 | -5/Factory | Preloaded H-55 Commando | x2 | -4/Factory | Authchip H-55 Commando | x2 | -4/Factory | Authchip Thermal Barrier | x1 | -1/Access | Preloaded Repaired ---------- Triangulator | 65% | -5/Factory | Broken Adv. Particle Charger | 48% | -5/Factory Adv. Transmission Jammer | 60% | -4/Factory | Broken Triangulator | 47% | -1/Access Studied --------- Hvy. Particle Cannon | -8/Materials | Hacked Hvy. Assault Rifle | -8/Materials | Hacked Hvy. Rocket Launcher | -6/Factory | Hacked Magnetic Acceleration Cannon | -5/Factory | Hacked Alien Tech Used ----------------- Integrated Dissipator Subatomic Replicator Dimensional Node Initializer Transdimensional Reconstructor High-powered Transdimensional Reconstructor Achievements -------------- Bigger And Badder Fight Me IRL Prodigal Son Stay Cool Under Fire Stronghold Challenges ------------ None Game ------ Seed ScrapPortableTracker Manual? 1 Play Time 05:26:46 Cumulative 153.6 hours Start 2026.09.09 @ 19:39:39 End 2026.09.13 @ 21:26:44 Sessions 79 Manual Loads 0 Difficulty Rogue Special Mode None Game No. 94 Rogue 93 Adventurer 1 Explorer 0 Win Type 8 Total 11 Types 4/2/1/1/0/0/0/1/1/1 Lore% 62 Gallery% 70 Achievement% 69 Wizard Run 0 Options --------- Layout 1 ASCII 0 Keyboard 0 Movement Numpad Keybinds 0 Fullscreen 1 Font 32/SmallcapsGlow Map View 50x35 Zoom Use 0% Tactical HUD 1 Map Filters NONE Filters NONE Steam 1 RUN: c8f9b368-5a4f-4fbc-a378-4d97a692faff